Cogmind - Beta 15 @@@ ROGUE MODE // 2025.06.06 @ 00:01:02 Player: Darcyisverycute Result: Escaped! Performance ------------- Evolutions (9) 4500 Regions Visited (33) 6600 Robots Destroyed (156) 780 Value Destroyed (6420) 6420 Prototype IDs (154) 3080 Alien Tech Used (5) 1000 Bonus (14022) 14022 TOTAL SCORE: 36402 Bonus ------- High Alert Combat Kills 236 Follower Combat Kills 1554 Aligned with FarCom 300 Met Data Miner 300 Met Zhirov 300 Met Warlord at Base 500 MAIN.C Attacked Warlord 500 Hacked Protovariant 500 Met Warlord at Research 2000 Hacked God Mode 5000 Win 3000 Friendly Fire -168 Cogmind --------- Core Integrity 1576/1600 Matter 300/300 Energy 800/840 System Corruption 2% Temperature Cool (42) Movement Flying (10) Location To Epsilon Eridani Parts ------- > --- POWER (3) -------- Concept Zero-point Core Concept Zero-point Core > --- PROPULSION (9) --- Cooled Q-thruster Experimental Q-thruster Experimental Q-thruster Experimental Q-thruster Experimental Biomechanical Wings Experimental Biomechanical Wings Experimental Surge Thruster Experimental Surge Thruster Experimental Surge Thruster > --- UTILITY (12) ----- 2N-1CE's Frost Array Medium Storage Unit Advanced Energy Well Structural Scanner Experimental Active Sensor Suite Concept Melee Reflex Suite Concept Projectile Intercept Suite Concept Weapon Articulator Femtoactuators Concept Reaction Jets Ghost Barrier > --- WEAPON (2) ------- Sigix Broadsword > --- INVENTORY (10) --- Concept Zero-point Core Quantum Capacitor Femtoactuators Concept RG22 Armor Concept RG22 Armor Transdimensional Reconstructor Concept Lightning Penetrator Concept Disintegration Ray (50) Concept Rapid Grenade Launcher Peak State ------------ > --- POWER ------------ Concept Zero-point Core Concept Zero-point Core Concept Zero-point Core > --- PROPULSION ------- Cooled Q-thruster Experimental Q-thruster Experimental Q-thruster Experimental Q-thruster Experimental Biomechanical Wings Experimental Biomechanical Wings Experimental Surge Thruster Experimental Surge Thruster Experimental Surge Thruster > --- UTILITY ---------- 2N-1CE's Frost Array Medium Storage Unit Experimental Active Sensor Suite Concept Melee Reflex Suite Concept Projectile Intercept Suite Concept Weapon Articulator Femtoactuators Concept RG22 Armor Concept RG22 Armor Ghost Barrier > --- WEAPON ----------- Sigix Broadsword > --- INVENTORY -------- Advanced Energy Well Structural Scanner Femtoactuators Concept Reaction Jets Transdimensional Reconstructor Concept Lightning Penetrator Concept Disintegration Ray Concept Rapid Grenade Launcher [Rating: 271] Favorites ----------- Power Light Nuclear Core Engine Light Ion Engine Power Core Light Nuclear Core Reactor Micro Antimatter Reactor Propulsion Improved VTOL Module Flight Unit Improved VTOL Module Utility Hacking Suite Device Advanced Sensor Array Storage Medium Storage Unit Processor Improved Signal Interpreter Hackware Hacking Suite Protection Light Regenerative Plating Weapon Sigix Broadsword Energy Gun Vortex Rail Energy Cannon Heavy Plasma Cannon Ballistic Gun Autogun Ballistic Cannon Perforator Launcher Heavy Missile Launcher Special Weapon Improved Plasma Cutter Impact Weapon Impact Mace Slashing Weapon Sigix Broadsword Piercing Weapon Vortex Lance Build | -11 -10 -10 -9 -9 -9 -8 -8 -7 -7 -7 -7 -6 -6 -6 -6 -6 -5 -5 -5 -5 -5 -4 -4 -4 -4 -4 -3 -3 -3 -2 -2 -2 -1 ------- Run | Yrd Mat Min Mat Min Exi Min Mat Fac Low Low Dat Pro Fac Low Low Zio Pro Fac Upp Upp Zhi Pro Fac Upp Upp War Pro Res Qua Res Tes Frg Acc Slots Evolved 18 | . . . 2 . . . 2 2 . . . . 2 . . . . 2 . . . . 2 . . . . 2 . 2 . . 2 Power 1 | . . . . . . . . . . . . . . . . . . 1 . . . . . . . . . . . . . . . Propulsion 7 | . . . 2 . . . 1 . . . . . . . . . . 1 . . . . . . . . . 1 . . . . 2 Utility 10 | . . . . . . . 1 2 . . . . 2 . . . . . . . . . 2 . . . . 1 . 2 . . . Weapon . | . . . . . . . . . . . . . . . . . . . . . . . . . . . . . . . . . . Parts Attached 214 | 4 6 . 4 1 1 11 7 15 . 1 . 3 11 . 1 3 3 14 3 1 2 3 9 6 4 15 3 7 3 23 12 35 3 Power 31 | 1 1 . . . . 2 1 3 . . . . 1 . . . . 2 1 . . 1 . 1 1 1 1 2 1 3 . 8 . Engine 11 | 1 1 . . . . 2 1 2 . . . . . . . . . 1 . . . 1 . . . . 1 . . 1 . . . Core 11 | . . . . . . . . 1 . . . . 1 . . . . 1 1 . . . . 1 1 . . 1 1 . . 3 . Reactor 9 | . . . . . . . . . . . . . . . . . . . . . . . . . . 1 . 1 . 2 . 5 . Propulsion 48 | . 2 . 2 . . 3 2 4 . . . 1 2 . . . . 4 1 . . . . 3 1 2 1 2 . 4 6 7 1 Treads . | . . . . . . . . . . . . . . . . . . . . . . . . . . . . . . . . . . Leg . | . . . . . . . . . . . . . . . . . . . . . . . . . . . . . . . . . . Wheel . | . . . . . . . . . . . . . . . . . . . . . . . . . . . . . . . . . . Hover . | . . . . . . . . . . . . . . . . . . . . . . . . . . . . . . . . . . Flight 48 | . 2 . 2 . . 3 2 4 . . . 1 2 . . . . 4 1 . . . . 3 1 2 1 2 . 4 6 7 1 Utility 84 | 1 2 . . . . 2 2 4 . 1 . 1 5 . 1 3 2 4 . 1 2 2 7 . 1 7 . 1 1 13 4 15 2 Device 44 | 1 1 . . . . 1 . . . 1 . 1 2 . 1 3 1 . . . . 1 4 . 1 3 . . 1 7 2 11 2 Storage 6 | . . . . . . . . 1 . . . . . . . . . 1 . . 1 . . . . . . 1 . 1 1 . . Processor 14 | . 1 . . . . . 1 1 . . . . . . . . . 1 . . . . 2 . . 2 . . . 3 1 2 . Hackware 14 | . . . . . . . 1 2 . . . . 3 . . . . 2 . 1 . 1 1 . . 2 . . . 1 . . . Protection 6 | . . . . . . 1 . . . . . . . . . . 1 . . . 1 . . . . . . . . 1 . 2 . Artifact . | . . . . . . . . . . . . . . . . . . . . . . . . . . . . . . . . . . Weapon 51 | 2 1 . 2 1 1 4 2 4 . . . 1 3 . . . 1 4 1 . . . 2 2 1 5 1 2 1 3 2 5 . Energy Gun 5 | 1 . . . . . . . . . . . . . . . . . . . . . . . . . 1 1 . . . 1 1 . Energy Cannon 3 | . . . . . . . . . . . . . 2 . . . . 1 . . . . . . . . . . . . . . . Ballistic Gun 10 | 1 . . 2 . 1 2 . . . . . . . . . . . . . . . . 1 2 . . . . . 1 . . . Ballistic Cannon 2 | . . . . . . . . 1 . . . . . . . . . . . . . . . . . . . . . . 1 . . Launcher 13 | . 1 . . . . 1 1 . . . . 1 . . . . . 1 1 . . . . . 1 . . 1 . 1 . 4 . Special Weapon 6 | . . . . . . . . . . . . . . . . . . 1 . . . . 1 . . 3 . . . 1 . . . Impact Weapon 4 | . . . . 1 . 1 . 2 . . . . . . . . . . . . . . . . . . . . . . . . . Slashing Weapon 4 | . . . . . . . 1 . . . . . 1 . . . . 1 . . . . . . . . . . 1 . . . . Piercing Weapon 4 | . . . . . . . . 1 . . . . . . . . 1 . . . . . . . . 1 . 1 . . . . . Special Melee Weapon . | . . . . . . . . . . . . . . . . . . . . . . . . . . . . . . . . . . Unidentified Prototypes 49 | . . . . . . 3 . 3 . . . . . . . 3 . . 1 . 3 . 2 . . 8 . 1 1 10 7 6 1 Corrupted Parts 5 | . . . . . . . . . . . . . . . . . . . . . . . . 5 . . . . . . . . . System Corruption 39 | . . . . . . . . . . . . . . . . . . . . . . . . 39 . . . . . . . . . Parts Lost 48 | . . . 2 1 . . 2 . . 1 . 4 . . . . 3 4 2 1 . 2 7 2 3 . 3 1 1 2 . 7 . Power 6 | . . . . . . . . . . . . 1 . . . . . . . . . . 1 . . . 2 1 . . . 1 . Propulsion 21 | . . . 2 1 . . 2 . . . . 2 . . . . 2 4 . 1 . . 1 2 1 . 1 . 1 . . 1 . Utility 17 | . . . . . . . . . . 1 . 1 . . . . 1 . 1 . . 2 4 . 2 . . . . 1 . 4 . Weapon 4 | . . . . . . . . . . . . . . . . . . . 1 . . . 1 . . . . . . 1 . 1 . Highest Loss Streak 6 | . . . 2 1 . . 1 . . 1 . 3 . . . . 2 2 2 1 . 2 4 6 3 . 2 1 1 1 . 4 . To Critical Strikes 1 | . . . . . . . . . . . . . . . . . . . . . . . 1 . . . . . . . . . . Average Backups 7 | 2 5 4 3 5 4 5 4 4 7 9 9 8 7 8 7 7 9 9 9 9 9 9 9 4 4 5 5 7 8 9 9 9 8 Power . | 1 . . . . . . . . . . . . . . . . . . . . . . . . . . . . 1 . . . . Propulsion . | . 1 2 . . . . . . . . . . . . . . . . . . . . . . . . . . . . 1 . . Utility 3 | . 1 2 2 2 2 2 3 1 4 6 6 5 3 4 4 3 5 6 6 6 7 7 5 2 2 1 1 2 2 1 1 2 4 Weapon 1 | . 2 . 1 3 2 2 1 2 2 2 2 2 3 2 1 1 2 1 1 1 1 . . . . 1 2 2 2 3 2 3 3 Tool/Special . | . . . . . . . . . . . . . . . . . . . . . . . . . . . . . . . . . . Unused Backups 39 | . 3 . . 1 . . 3 . 3 1 . 1 . 1 . 3 . 1 2 . 1 . 2 . . . . 1 1 1 3 7 4 Power 1 | . . . . . . . . . . . . . . . . . . . 1 . . . . . . . . . . . . . . Propulsion 3 | . . . . . . . . . . . . . . . . . . . . . . . . . . . . . . . . 3 . Utility 26 | . 2 . . 1 . . 3 . 2 1 . 1 . 1 . 1 . 1 1 . 1 . 2 . . . . 1 1 1 2 3 1 Weapon 6 | . 1 . . . . . . . 1 . . . . . . 1 . . . . . . . . . . . . . . . 1 2 Tool/Special 3 | . . . . . . . . . . . . . . . . 1 . . . . . . . . . . . . . . 1 . 1 Average Slot Usage (%) 79 | . 63 86 77 48 44 86 77 94 100 99 100 76 81 86 86 85 85 65 69 62 60 72 56 61 67 78 88 76 85 92 90 88 87 Engine 1 | . 8 14 7 . . 8 9 3 . . . . . . . . . 1 . . . 2 . . . . . . . 3 . . . Core 3 | . . . . . . . . 3 7 7 7 6 3 6 6 6 5 . 4 5 5 5 3 4 5 4 3 1 7 4 4 3 7 Reactor 1 | . . . . . . . . . . . . . . . . . . . . . . . . . . 1 5 2 . 3 4 3 . Flight 25 | . 16 28 29 13 11 37 34 36 38 38 38 30 30 33 33 32 31 18 22 16 16 16 14 13 18 22 24 23 27 27 27 28 33 Device 8 | . 13 14 11 11 11 11 9 6 7 6 7 7 9 6 6 6 5 4 6 4 2 4 3 . 7 4 5 4 6 10 8 17 22 Storage 3 | . . . . . . . . . 7 7 7 7 6 6 6 5 6 5 5 5 5 5 4 . . . . 3 4 4 8 5 6 Processor 7 | . 10 14 11 11 11 11 9 7 7 7 7 7 6 6 6 6 5 . 5 5 5 4 6 10 10 12 10 9 9 8 15 12 7 Hackware 17 | . . . . . . . 8 20 15 15 15 13 20 26 26 26 26 28 16 21 22 21 21 20 19 21 25 22 20 19 12 9 3 Protection 1 | . . . . . . . . . . . . . . . . . . . 2 . . . . 5 5 5 5 4 4 3 2 1 . Ballistic Gun 1 | . 14 14 18 11 . 13 . . . . . . . . . . . . . . . . . 7 . . . . . . . . . Piercing Weapon 1 | . . . . . . . . 5 7 7 7 . . . . . . 2 . . . . . . . 2 4 . 2 . . . . Peak Build Rating 271 | 4 8 7 9 9 8 37 42 55 55 55 50 50 70 57 56 61 56 60 58 57 59 60 68 59 75 127 127 126 144 188 203 266 271 Average Rating 89 | 1 6 6 8 6 6 13 36 45 54 54 50 37 50 52 52 51 51 48 53 50 48 58 54 52 66 98 125 111 131 169 196 212 256 On Entrance 63 | . 4 6 6 9 6 6 37 25 53 55 50 50 30 52 52 52 52 38 51 58 49 59 50 47 52 57 127 115 120 144 188 203 253 Naked Turns . | . . . . . . . . . . . . . . . . . . . . . . . . . . . . . . . . . . Heaviest Build 83 | 9 8 8 8 7 3 20 16 24 24 25 25 27 26 21 31 40 31 26 30 26 33 36 26 19 24 60 63 61 41 51 55 83 55 Greatest Support 59 | 3 8 8 16 8 4 16 16 26 26 26 26 26 23 22 22 22 22 27 21 16 16 16 16 12 19 31 33 46 46 55 55 48 59 Greatest Overweight (x) 13 | 2 . . . . . 1 5 . . . . 1 4 . 1 1 9 5 1 4 2 2 1 4 1 1 1 1 . . 1 13 . Average Overweight (x) . | . . . . . . . . . . . . . . . . . . . . . . 1 . . . . . . . . . . . Largest Inventory Capacity 10 | 5 5 5 5 5 5 5 5 10 10 10 10 10 10 10 10 10 10 10 10 10 10 10 10 5 5 5 5 10 10 10 10 10 10 Average Capacity 8 | 5 5 5 5 5 5 5 5 5 10 10 10 10 10 10 10 9 10 10 10 10 10 10 9 5 5 5 5 9 10 10 10 10 10 Most Carried 10 | 5 5 5 5 5 5 5 5 6 10 10 10 10 10 10 10 10 10 10 10 10 10 10 10 5 5 5 5 10 10 10 10 10 10 Average Carried 8 | 3 4 4 3 5 4 4 4 5 8 10 10 9 9 9 9 9 9 9 9 9 9 9 9 4 4 4 5 8 9 9 9 9 9 Final Capacity 10 | 5 5 5 5 5 5 5 5 10 10 10 10 10 10 10 10 10 10 10 10 10 10 10 5 5 5 5 5 10 10 10 10 10 10 Final Carried 10 | 5 5 5 5 5 5 5 5 6 10 10 10 10 10 10 10 10 10 10 9 10 10 10 5 5 5 5 5 9 10 10 10 10 10 Class Distribution -------------------- 36% | Hacker-Sprinter 26% | Hacker-Mutant 11% | Wizard-Mutant 7% | Wizard-Sprinter 6% | Mutant 3% | Hacker-Gladiator 3% | Hacker-Scout 3% | Scavenger-Sprinter Dominant Class ---------------- Mutant | -10/Materials Mutant | -10/Mines Mutant | -9/Materials Mutant | -9/Mines Mutant | -9/Exiles Scavenger-Sprinter | -8/Mines Scavenger-Sprinter | -8/Materials Hacker-Sprinter | -7/Factory Hacker-Sprinter | -7/Lower Caves Hacker-Sprinter | -7/Lower Caves Hacker-Sprinter | -7/Data Miner Hacker-Sprinter | -6/Proximity Caves Hacker-Sprinter | -6/Factory Hacker-Sprinter | -6/Lower Caves Hacker-Sprinter | -6/Lower Caves Hacker-Sprinter | -6/Zion Hacker-Sprinter | -5/Proximity Caves Hacker-Sprinter | -5/Factory Hacker-Mutant | -5/Upper Caves Hacker-Sprinter | -5/Upper Caves Hacker-Sprinter | -5/Zhirov Hacker-Mutant | -4/Proximity Caves Hacker-Mutant | -4/Factory Hacker-Mutant | -4/Upper Caves Hacker-Sprinter | -4/Upper Caves Wizard-Mutant | -4/Warlord Wizard-Mutant | -3/Proximity Caves Wizard-Mutant | -3/Research Wizard-Sprinter | -3/Quarantine Wizard-Sprinter | -2/Research Hacker-Sprinter | -2/Testing Hacker-Sprinter | -2/Protoforge Hacker-Scout | -1/Access Resources | -11 -10 -10 -9 -9 -9 -8 -8 -7 -7 -7 -7 -6 -6 -6 -6 -6 -5 -5 -5 -5 -5 -4 -4 -4 -4 -4 -3 -3 -3 -2 -2 -2 -1 ----------- Run | Yrd Mat Min Mat Min Exi Min Mat Fac Low Low Dat Pro Fac Low Low Zio Pro Fac Upp Upp Zhi Pro Fac Upp Upp War Pro Res Qua Res Tes Frg Acc Matter Collected 6798 | 291 69 141 114 . . 211 157 185 34 10 . 45 262 . 70 117 82 166 105 280 76 113 153 40 327 50 274 34 253 937 174 1863 165 Remotely . | . . . . . . . . . . . . . . . . . . . . . . . . . . . . . . . . . . Salvage Created 6828 | 130 69 40 156 . . 105 47 376 . . . 44 279 . 34 . 82 489 47 56 313 27 207 18 3 50 217 95 323 575 174 1903 969 Parts 321 | 12 4 1 10 . . 6 12 16 . . . 5 16 . 2 . . 24 4 1 2 4 3 2 . 3 6 15 2 21 10 101 39 Haulers Intercepted 8 | . 1 . . . . . . 2 . . . . . . . . . . . . . . 1 . . . . . 1 1 . . 2 Recyclers Shooed 3 | . . . . . . . . . . . . . . . . . . 1 . . . . . . . . . 2 . . . . . Parts Field Recycled . | . . . . . . . . . . . . . . . . . . . . . . . . . . . . . . . . . . Retrieved Matter . | . . . . . . . . . . . . . . . . . . . . . . . . . . . . . . . . . . Parts Self-Destructed 17 | . . . . . . . . . . . . 3 . . 2 . . . 1 1 2 2 . 2 . . 4 . . . . . . Prevented 5 | . . . . . . . . . . . . . . . . . . . . . . . . 5 . . . . . . . . . Kills | -11 -10 -10 -9 -9 -9 -8 -8 -7 -7 -7 -7 -6 -6 -6 -6 -6 -5 -5 -5 -5 -5 -4 -4 -4 -4 -4 -3 -3 -3 -2 -2 -2 -1 ------- Run | Yrd Mat Min Mat Min Exi Min Mat Fac Low Low Dat Pro Fac Low Low Zio Pro Fac Upp Upp Zhi Pro Fac Upp Upp War Pro Res Qua Res Tes Frg Acc Combat Hostiles Destroyed 102 | . . 13 3 . . 3 4 1 . . . 4 3 . . . 1 9 5 1 . . . 1 1 . 9 4 . 2 . 30 8 Melee 23 | . . . . . . . . 1 . . . . 3 . . . . 1 . . . . . . . . . . . 2 . 9 7 Guns 14 | . . . 3 . . 1 . . . . . . . . . . . . . . . . . 1 . . 8 . . . . . 1 Cannons 6 | . . . . . . . . . . . . . . . . . 1 . . . . . . . . . . . . . . 5 . AOE 54 | . . 13 . . . 2 4 . . . . 4 . . . . . 8 5 . . . . . 1 . 1 4 . . . 12 . Classes Destroyed 20 | 2 2 2 2 . . 1 . 2 . . . . 2 . 1 . 1 1 . 1 . . . . . . . . . . . 3 . Worker 14 | . . 1 . . . . . 1 . . . . 1 . . . . . . . . . . . . . . 2 . 4 . 4 1 Builder 8 | . . . . . . . . . . . . . . . . . . 1 . . . . . . . . . 1 . . . 5 1 Tunneler 5 | 3 . . . . . . . . . . . . 1 . . . . . . . . . . . . . . . . 1 . . . Hauler 8 | . 1 . . . . . . 2 . . . . . . . . . . . . . . 1 . . . . . 1 1 . . 2 Recycler 10 | 1 . . . . . . . 1 . . . . 1 . . . . 2 . . . . 1 . . . . . 1 1 1 . 1 Minesweeper 2 | . . . . . . . . . . . . . . . 1 . . . . . . 1 . . . . . . . . . . . Mechanic 2 | . . . . . . . . 1 . . . . . . . . . . . . . . . . . . . . . . 1 . . Operator 5 | . 1 . . . . . 2 . . . . . . . . . . . . . . . . . . . . . 1 . . 1 . Drone 2 | . . . . . . . . . . . . . . . . . . . . . . . . . . . . . . . . 2 . Watcher 11 | . . . . . . . . 4 . . . . . . . . . 1 . . . . . . . . . . 1 1 . 3 1 Swarmer 32 | . . . . . . 2 4 . . . . 4 . . . . . 8 5 . . . . 1 . . 4 4 . . . . . Cutter 1 | . . . . . . . . . . . . . 1 . . . . . . . . . . . . . . . . . . . . Grunt 9 | . . . 1 . . . . 1 . . . . . . . . . 1 . . . . . . . . 5 . . 1 . . . Brawler 1 | . . . . . . . . . . . . . . . . . 1 . . . . . . . . . . . . . . . . Researcher 1 | . . . . . . . . . . . . . . . . . . . . . . . . . . . . . . . . 1 . Sentry 15 | . . . 2 . . . . . . . . . 1 . . . . . . . . . . . . . . . . 1 . 9 2 Hunter 1 | . . . . . . . . . . . . . 1 . . . . . . . . . . . . . . . . . . . . Programmer 14 | . . . . . . . . . . . . . . . . . . . . 1 . . . . 1 . . . . . . 6 6 Decapitator 8 | . . . . . . . . . . . . . . . . . . . . . . . . . . . . . . . . 8 . Immortal 5 | . . . . . . . . . . . . . . . . . . . . . . . . . . . . . . . . 5 . Decomposer 1 | . . . . . . . . . . . . 1 . . . . . . . . . . . . . . . . . . . . . Assembled 13 | . . 13 . . . . . . . . . . . . . . . . . . . . . . . . . . . . . . . Surgeon 1 | . . . . . . . . . . . . . . . . . . . . . . . . . . 1 . . . . . . . Best Kill Streak 13 | 4 1 13 3 . . 2 5 3 . . . 4 3 . 1 . 1 4 5 1 . 1 1 1 1 . 5 5 2 4 1 8 7 Combat Bots Only 13 | . . 13 3 . . 2 4 1 . . . 4 1 . . . 1 4 5 1 . . . 1 1 . 5 4 . 1 . 8 6 Max Kills in Single Turn 4 | 1 1 4 1 . . 1 4 1 . . . 2 1 . 1 . 1 4 3 1 . 1 1 1 1 1 1 2 1 1 1 2 1 Gunslinging . | . . . . . . . . . . . . . . . . . . . . . . . . . . . . . . . . . . Exploded 4 | . . 4 . . . 1 4 . . . . 2 . . . . . 4 3 . . . . . 1 . 1 2 . . . 2 . Melee 1 | . . . . . . . . 1 . . . . 1 . . . . 1 . . . . . . . . . . . 1 . 1 1 Uniques/NPCs Destroyed 2 | . . . . . . 1 . . . . . . . . . . . . . . . . . . . . . . . 1 . . . CL-ANK (-8/Mines) Warlord (-2/Research) Combat | -11 -10 -10 -9 -9 -9 -8 -8 -7 -7 -7 -7 -6 -6 -6 -6 -6 -5 -5 -5 -5 -5 -4 -4 -4 -4 -4 -3 -3 -3 -2 -2 -2 -1 -------- Run | Yrd Mat Min Mat Min Exi Min Mat Fac Low Low Dat Pro Fac Low Low Zio Pro Fac Upp Upp Zhi Pro Fac Upp Upp War Pro Res Qua Res Tes Frg Acc Hostile Shots Fired 523 | . 4 15 33 1 . 12 22 12 . 3 . 50 25 . . . 16 46 8 9 . 2 28 37 8 . 39 9 12 23 14 74 21 Missed 245 | . 1 7 18 . . 7 12 7 . 2 . 33 13 . . . 6 23 2 6 . 1 7 13 4 . 15 6 7 10 5 27 13 Deflected 6 | . . . . . . . . . . . . . . . . . . . . . . . . . . . . . . . . 5 1 Hits 278 | . 3 8 15 1 . 5 10 5 . 1 . 17 12 . . . 10 23 6 3 . 1 21 24 4 . 24 3 5 13 9 47 8 Melee 9 | . . . . . . 1 . . . . . . . . . . 1 . . . . . 3 . . . . . . . . 4 . Projectile 269 | . 3 8 15 1 . 4 10 5 . 1 . 17 12 . . . 9 23 6 3 . 1 18 24 4 . 24 3 5 13 9 43 8 AOE 4 | . . . . . . . . . . . . . . . . . . . . . . . . . . . . . . . . 4 . Critical Strikes 16 | . . 1 . . . 1 . . . . . 1 . . . . . 1 . 1 . . 4 1 . . 1 . . . . 5 . Part Disruptions 1 | . . . . . . . . . . . . . . . . . . . . . . . . 1 . . . . . . . . . Damage Taken 6854 | . 37 114 207 12 . 106 130 79 . 33 . 329 127 . . . 219 628 124 65 . 172 521 434 320 . 552 106 107 349 223 1630 230 Core 1622 | . 11 26 69 . . 87 54 30 . . . 62 79 . . . 36 66 25 20 . 43 201 176 84 . 93 24 . 12 42 358 24 Absorbed by Shields . | . . . . . . . . . . . . . . . . . . . . . . . . . . . . . . . . . . Regen/Repaired (Parts) 1882 | . . . . . . . . 10 . . . . . . . . . 18 131 5 . . 42 129 88 43 129 22 61 285 127 601 191 Core Remaining (%) 82 | 100 . 85 . . . 61 90 . . . . 86 . . . . 86 . . . . 84 . . . . 51 . 98 . . 66 98 Volleys Fired 397 | 17 9 12 16 . 2 39 1 . . . . 11 14 3 7 . 23 13 10 28 12 51 25 1 6 . 30 11 . 8 . 48 . Largest 2 | 1 1 1 2 . 1 2 1 . . . . 1 1 1 1 . 1 1 1 1 1 1 1 2 1 . 2 1 . 1 . 1 . Hottest 100 | 20 30 30 46 . 23 43 36 . . . . 39 90 90 90 . 90 90 90 90 90 90 90 46 43 . 90 52 . 70 . 100 . Shots Fired 455 | 17 9 12 30 . 2 75 1 . . . . 11 14 3 7 . 23 13 10 28 12 50 25 3 6 . 36 11 . 8 . 49 . Gun 200 | 17 7 3 30 . 2 72 . . . . . . . . . . . . . . . . . 3 . . 36 8 . . . 22 . Cannon 190 | . . . . . . . . . . . . . 14 3 7 . 23 10 7 28 12 50 25 . . . . . . . . 11 . Launcher 59 | . 2 9 . . . 3 1 . . . . 11 . . . . . 3 3 . . . . . 6 . . 3 . 2 . 16 . Special 6 | . . . . . . . . . . . . . . . . . . . . . . . . . . . . . . 6 . . . Kinetic 145 | 17 7 3 30 . 2 72 . . . . . . . . . . . . . . . . . 3 . . . . . . . 11 . Thermal 179 | . . . . . . . . . . . . . 14 3 7 . 23 10 7 28 12 50 25 . . . . . . . . . . Explosive 59 | . 2 9 . . . 3 1 . . . . 11 . . . . . 3 3 . . . . . 6 . . 3 . 2 . 16 . Electromagnetic 22 | . . . . . . . . . . . . . . . . . . . . . . . . . . . . . . . . 22 . Entropic 44 | . . . . . . . . . . . . . . . . . . . . . . . . . . . 36 8 . . . . . Robot Hit Streak 18 | 9 4 8 12 . . 9 3 . . . . . 2 . 5 . 6 1 . 3 7 2 10 1 2 . 9 3 . 4 . 18 . Robot Miss Streak 5 | 1 1 . 2 . . 3 . . . . . . 1 . 1 . 1 2 . 3 2 2 1 1 1 . 2 . . 1 . 5 . Penetration Max 2 | . . . . . . . . . . . . . . . . . . . . . . . . . . . 2 1 . . . 1 . Secondary Targets . | . . . . . . . . . . . . . . . . . . . . . . . . . . . . . . . . . . Shots Hit Robots 326 | 14 6 5 23 . . 47 3 17 . . . . 8 . 5 . 5 8 . 6 10 2 10 1 2 1 25 2 5 19 2 71 29 Core Hits 267 | 5 3 21 6 . . 16 5 8 . . . 7 3 . 1 . 2 12 6 . 7 2 3 1 2 1 14 9 2 8 1 111 11 Critical Kills 7 | . . . . . . . . . . . . . 1 . . . . . . . . . 1 . . . . . . . . 5 . Critical Parts Destroyed 13 | . . . . . . . 1 . . . . . . . . . . . . . . . . . . . 2 1 . . . 9 . Critical Strikes 38 | . . . . . . . 1 2 . . . . 1 . . . . 1 . . . . 1 . . . 2 1 1 3 . 25 . Meltdown 1 | . . . . . . . . . . . . . . . . . . . . . . . 1 . . . . . . . . . . Destroy 23 | . . . . . . . . . . . . . . . . . . . . . . . . . . . . . . . . 23 . Smash 2 | . . . . . . . 1 . . . . . 1 . . . . . . . . . . . . . . . . . . . . Sever 5 | . . . . . . . . . . . . . . . . . . . . . . . . . . . . . . 3 . 2 . Impale 3 | . . . . . . . . 2 . . . . . . . . . 1 . . . . . . . . . . . . . . . Detonate 3 | . . . . . . . . . . . . . . . . . . . . . . . . . . . 2 1 . . . . . Sunder 1 | . . . . . . . . . . . . . . . . . . . . . . . . . . . . . 1 . . . . Melee Attacks 293 | . . . . . 2 . 5 51 . 5 . . 10 . . . 1 23 . . . . . . . 1 1 3 19 41 12 67 52 Kinetic 4 | . . . . . . . 3 . . . . . 1 . . . . . . . . . . . . . . . . . . . . Impact 16 | . . . . . 2 . . 10 . 4 . . . . . . . . . . . . . . . . . . . . . . . Slashing 206 | . . . . . . . 2 14 . . . . 9 . . . . 2 . . . . . . . . . . 9 41 12 65 52 Piercing 50 | . . . . . . . . 27 . 1 . . . . . . 1 21 . . . . . . . . . . . . . . . Entropic 17 | . . . . . . . . . . . . . . . . . . . . . . . . . . 1 1 3 10 . . 2 . Sneak Attacks 47 | . . . . . . . . 6 . . . . 4 . . . . 4 . . . . . . . 1 . . 2 7 2 14 7 Combat Hostiles 4 | . . . . . . . . 1 . . . . 1 . . . . . . . . . . . . . . . . . . . 2 Follow-up Attacks . | . . . . . . . . . . . . . . . . . . . . . . . . . . . . . . . . . . Martial Strikes 13 | . . . . . . . . . . . . . . . . . . . . . . . . . . . . . . . . 4 9 Damage Inflicted 23654 | 182 112 731 316 . . 475 399 900 . . . 296 601 . 160 . 155 1181 543 233 245 66 320 13 191 148 1464 854 585 2208 386 7580 3310 Guns 2675 | 182 81 37 316 . . 376 . . . . . . . . . . . . . . . . . 13 . . 1030 197 . . . 443 . Cannons 1448 | . . . . . . . . . . . . . 62 . 160 . 155 . . 233 245 66 320 . . . . . . . . 207 . Explosions 6750 | . 31 694 . . . 99 245 . . . . 296 . . . . . 725 543 . . . . . 191 . 434 657 . 207 . 2628 . Melee 12781 | . . . . . . . 154 900 . . . . 539 . . . . 456 . . . . . . . 148 . . 585 2001 386 4302 3310 Ramming . | . . . . . . . . . . . . . . . . . . . . . . . . . . . . . . . . . . Kinetic 1438 | 182 81 37 316 . . 376 111 . . . . . 115 . . . . . . . . . . 13 . . . . . . . 207 . Thermal 1751 | . . . . . . . . . . . . . 62 . 160 . 155 . . 233 245 66 320 . . . 434 76 . . . . . Explosive 6240 | . 31 694 . . . 99 245 . . . . 296 . . . . . 725 543 . . . . . 191 . . 581 . 207 . 2628 . Electromagnetic 443 | . . . . . . . . . . . . . . . . . . . . . . . . . . . . . . . . 443 . Impact . | . . . . . . . . . . . . . . . . . . . . . . . . . . . . . . . . . . Slashing 10964 | . . . . . . . 43 289 . . . . 424 . . . . 85 . . . . . . . . . . 318 2001 386 4108 3310 Piercing 982 | . . . . . . . . 611 . . . . . . . . . 371 . . . . . . . . . . . . . . . Entropic 1836 | . . . . . . . . . . . . . . . . . . . . . . . . . . 148 1030 197 267 . . 194 . Highest Corruption 41 | . . . . . . . . . . . . . . . . . 5 . . 2 2 10 . 39 41 41 . . . 2 2 19 2 Average Corruption 10 | . . . . . . . . . . . . . . . . . 5 . . 1 2 2 . 37 39 41 . . . 2 2 12 1 Corruption Purged 2 | . . . . . . . . . . . . . . . . . . . . . . . . . . . . . . . . 2 . Corruption Blocked . | . . . . . . . . . . . . . . . . . . . . . . . . . . . . . . . . . . Effects 103 | . . . . . . . . . . . . . . . . . 2 . . 5 3 15 . 20 15 . . . . 10 2 30 1 Message Errors 22 | . . . . . . . . . . . . . . . . . . . . 1 . 2 . 5 1 . . . . 3 1 9 . Matter Fused 30 | . . . . . . . . . . . . . . . . . . . . . 2 5 . 8 5 . . . . . . 9 1 Heat Flow Errors 13 | . . . . . . . . . . . . . . . . . 2 . . 2 1 1 . . 4 . . . . 1 . 2 . Energy Discharges 11 | . . . . . . . . . . . . . . . . . . . . 2 . . . 3 2 . . . . 1 . 3 . Parts Rejected 3 | . . . . . . . . . . . . . . . . . . . . . . . . . . . . . . 1 . 2 . Data Loss (minor) 12 | . . . . . . . . . . . . . . . . . . . . . . 2 . 3 . . . . . 4 1 2 . Data Loss (major) 5 | . . . . . . . . . . . . . . . . . . . . . . 2 . . 1 . . . . . . 2 . Misfires 2 | . . . . . . . . . . . . . . . . . . . . . . . . 1 . . . . . . . 1 . Alerts 3 | . . . . . . . . . . . . . . . . . . . . . . 2 . . 1 . . . . . . . . Misdirections 1 | . . . . . . . . . . . . . . . . . . . . . . . . . 1 . . . . . . . . Weapon Failures 1 | . . . . . . . . . . . . . . . . . . . . . . 1 . . . . . . . . . . . Overload Shots . | . . . . . . . . . . . . . . . . . . . . . . . . . . . . . . . . . . Overflow Damage 3863 | . . 24 . . . . 111 143 . . . 2 138 . 41 . . 107 7 13 6 . 8 . . . 73 7 247 844 188 1145 759 Projectiles 68 | . . . . . . . . . . . . . . . 41 . . . . 13 6 . 8 . . . . . . . . . . Explosions 202 | . . 24 . . . . . . . . . 2 . . . . . 6 7 . . . . . . . 73 7 . . . 83 . Melee 3593 | . . . . . . . 111 143 . . . . 138 . . . . 101 . . . . . . . . . . 247 844 188 1062 759 Knockbacks 6 | . . . . . . . . . . . . . . . . . . . . . . . . . . . . . . . . 6 . Impact . | . . . . . . . . . . . . . . . . . . . . . . . . . . . . . . . . . . Kinetic 6 | . . . . . . . . . . . . . . . . . . . . . . . . . . . . . . . . 6 . Secondary . | . . . . . . . . . . . . . . . . . . . . . . . . . . . . . . . . . . Self-Inflicted Damage 780 | . . . . . . . 3 . . . . 103 . . . . . 227 37 . . . . . 34 . . 40 . . . 336 . Shots 22 | . . . . . . . 1 . . . . 4 . . . . . 3 1 . . . . . 2 . . 1 . . . 10 . Rammed . | . . . . . . . . . . . . . . . . . . . . . . . . . . . . . . . . . . Targets Rammed . | . . . . . . . . . . . . . . . . . . . . . . . . . . . . . . . . . . Kicked . | . . . . . . . . . . . . . . . . . . . . . . . . . . . . . . . . . . Crushed . | . . . . . . . . . . . . . . . . . . . . . . . . . . . . . . . . . . Highest Temperature 611 | . 3 . 2 . . 14 3 31 19 18 8 26 315 132 228 2 365 64 109 611 258 194 . 248 146 . 24 28 184 308 134 162 40 Average Temperature 52 | . 3 . 2 . . 5 3 4 7 7 3 14 80 56 88 2 111 22 50 127 130 10 . 142 73 . 13 19 64 69 56 20 33 Received Heat Transfer 685 | . 21 . 69 6 . . 27 45 . 12 . 39 42 . . . 45 72 . . . 12 84 9 . . 67 9 18 . 9 81 18 Effects 7 | . . . . . . . . . . . . . . . . . 3 . . 4 . . . . . . . . . . . . . Shutdowns 1 | . . . . . . . . . . . . . . . . . . . . 1 . . . . . . . . . . . . . Energy Bleed 3 | . . . . . . . . . . . . . . . . . 2 . . 1 . . . . . . . . . . . . . Matter Decay 2 | . . . . . . . . . . . . . . . . . . . . 2 . . . . . . . . . . . . . Short Circuit 1 | . . . . . . . . . . . . . . . . . 1 . . . . . . . . . . . . . . . . Siege Activations . | . . . . . . . . . . . . . . . . . . . . . . . . . . . . . . . . . . Martial Activations . | . . . . . . . . . . . . . . . . . . . . . . . . . . . . . . . . . . Shielding Activations . | . . . . . . . . . . . . . . . . . . . . . . . . . . . . . . . . . . Robots Disrupted . | . . . . . . . . . . . . . . . . . . . . . . . . . . . . . . . . . . Combat Hostiles . | . . . . . . . . . . . . . . . . . . . . . . . . . . . . . . . . . . Robots Corrupted 4 | . . . . . . . . . . . . . . . . . . . . . . . . . . . . . . . . 4 . Combat Hostiles 4 | . . . . . . . . . . . . . . . . . . . . . . . . . . . . . . . . 4 . Parts Fried 10 | . . . . . . . . . . . . . . . . . . . . . . . . . . . . . . . . 10 . Impact Corruptions . | . . . . . . . . . . . . . . . . . . . . . . . . . . . . . . . . . . Robots Melted 2 | . . . . . . . . . . . . . . . . . . . . 1 . . 1 . . . . . . . . . . Combat Hostiles 1 | . . . . . . . . . . . . . . . . . . . . 1 . . . . . . . . . . . . . Parts Melted 17 | . . . . . . . . . . . . . . . . . 2 . . 5 . . 4 . . . . . 6 . . . . Heat Transferred 2298 | . . . . . . . . . . . . . 100 . 250 . 250 . . 300 348 100 500 . . . 350 100 . . . . . Parts Sabotaged . | . . . . . . . . . . . . . . . . . . . . . . . . . . . . . . . . . . Parts Stolen . | . . . . . . . . . . . . . . . . . . . . . . . . . . . . . . . . . . Parts Stripped . | . . . . . . . . . . . . . . . . . . . . . . . . . . . . . . . . . . Power Chain Reactions . | . . . . . . . . . . . . . . . . . . . . . . . . . . . . . . . . . . Alert | -11 -10 -10 -9 -9 -9 -8 -8 -7 -7 -7 -7 -6 -6 -6 -6 -6 -5 -5 -5 -5 -5 -4 -4 -4 -4 -4 -3 -3 -3 -2 -2 -2 -1 ------- Run | Yrd Mat Min Mat Min Exi Min Mat Fac Low Low Dat Pro Fac Low Low Zio Pro Fac Upp Upp Zhi Pro Fac Upp Upp War Pro Res Qua Res Tes Frg Acc Maximum Alert Level 3 | . . . . . . . . . . . . . . . . . . 1 . . . . . . . . . 1 1 1 1 2 3 Low Security (%) 76 | 100 100 100 100 100 . 100 100 100 . . . . 100 . . . . 90 . . . . 100 . . . . 85 93 91 68 34 . Level 1 19 | . . . . . . . . . . . . . . . . . . 9 . . . . . . . . . 14 6 8 31 63 27 Level 2 3 | . . . . . . . . . . . . . . . . . . . . . . . . . . . . . . . . 2 58 Level 3 . | . . . . . . . . . . . . . . . . . . . . . . . . . . . . . . . . . 13 Level 4 . | . . . . . . . . . . . . . . . . . . . . . . . . . . . . . . . . . . Level 5 . | . . . . . . . . . . . . . . . . . . . . . . . . . . . . . . . . . . High Security . | . . . . . . . . . . . . . . . . . . . . . . . . . . . . . . . . . . Max Security . | . . . . . . . . . . . . . . . . . . . . . . . . . . . . . . . . . . Peak Influence 847 | 15 29 66 61 19 . 57 114 101 . . . . 155 . . . . 251 . . . . 135 . . . . 295 201 279 294 419 847 Initial 248 | . . 7 15 19 . . . 44 . . . . 69 . . . . 37 . . . . 22 . . . . 54 165 83 147 165 248 Average 121 | 4 5 40 28 4 . 17 26 33 . . . . 76 . . . . 109 . . . . 23 . . . . 125 128 110 191 200 516 Influence Increases 6039 | 20 66 121 81 . . 72 194 211 . 60 . 210 286 . 5 . 110 672 110 30 5 65 304 35 45 . 200 330 241 598 227 1012 729 Destroy 0b10 Robot/C 1940 | . . 20 60 . . 40 80 20 . . . 80 60 . . . 20 180 100 20 . . . 20 20 . 180 80 . 220 . 580 160 Destroy 0b10 Robot/NC 340 | 20 10 5 . . . . 10 45 . . . . 15 . 5 . . 20 . . 5 5 10 . . . . 15 20 40 10 75 30 Destroy Leader 338 | . 2 10 20 . . . 10 12 . . . 10 20 . . . . 22 10 10 . . 2 . 10 . 20 10 4 54 . 56 56 Allied During Kill 11 | . . . . . . . . . . . . . . . . . . . . . . . . . . . . . . 11 . . . Successful Hack 319 | . 25 . . . . . 25 16 . . . . 41 . . . . 12 . . . . 32 . . . . 5 23 39 40 61 . Disable Machine 555 | . 15 . . . . . 15 15 . . . . . . . . . 90 . . . . . . . . . 75 60 15 105 150 15 Destroy Structure 586 | . 14 26 1 . . 17 9 13 . . . . 15 . . . . 108 . . . . 20 . . . . 130 14 99 12 45 63 Partial Spotted 390 | . . . . . . . 30 15 . . . . 30 . . . . 15 . . . . 45 . . . . . 60 30 60 45 60 Lose Combat Pursuer 1260 | . . 60 . . . 15 15 75 . 60 . 120 105 . . . 90 225 . . . 60 195 15 15 . . 15 60 90 . . 45 Active Sensor Use 300 | . . . . . . . . . . . . . . . . . . . . . . . . . . . . . . . . . 300 Influence Decreases 5192 | 20 47 99 71 51 . 72 95 240 70 40 20 100 251 115 35 . 50 605 237 30 5 29 243 132 45 . 118 118 387 483 196 891 297 Entered New Map 1029 | . . 12 26 32 . . . 55 26 . 20 . 41 55 6 . . 23 48 . . . 14 37 . . . 28 129 65 116 129 167 Time Decay 2918 | 20 47 87 35 9 . 72 75 175 44 30 . 70 190 60 29 . 50 248 169 30 5 29 153 75 40 . 98 80 52 318 60 438 130 Lost Part 365 | . . . 10 10 . . 20 . . 10 . 30 . . . . . 40 20 . . . 70 20 5 . 20 10 10 20 . 70 . Lost Ally 156 | . . . . . . . . 10 . . . . 20 . . . . 10 . . . . 6 . . . . . 10 80 20 . . Purge Threat 724 | . . . . . . . . . . . . . . . . . . 284 . . . . . . . . . . 186 . . 254 . Squads Dispatched 35 | . 1 . 1 . . . 2 6 . . . . 2 . . . . 5 . . . . 1 . . . . 1 1 2 3 4 6 Investigation 11 | . . . . . . . 1 3 . . . . 1 . . . . 2 . . . . . . . . . . . . 1 . 3 Extermination 13 | . . . . . . . . 3 . . . . 1 . . . . 1 . . . . 1 . . . . . . . 1 4 2 Reinforcement 10 | . 1 . 1 . . . 1 . . . . . . . . . . 2 . . . . . . . . . 1 1 2 . . 1 Assault 1 | . . . . . . . . . . . . . . . . . . . . . . . . . . . . . . . 1 . . Garrison . | . . . . . . . . . . . . . . . . . . . . . . . . . . . . . . . . . . Intercept . | . . . . . . . . . . . . . . . . . . . . . . . . . . . . . . . . . . Searches Triggered . | . . . . . . . . . . . . . . . . . . . . . . . . . . . . . . . . . . Data Miner Redirects 1 | . . . . . . . . . . . . . . . . . . 1 . . . . . . . . . . . . . . . Construction Impeded . | . . . . . . . . . . . . . . . . . . . . . . . . . . . . . . . . . . Haulers Reinforced 2 | . . . . . . . . . . . . . . . . . . 1 . . . . . . . . . . . 1 . . . Active Scanning Responses 3 | . . . . . . . . . . . . . . . . . . . . . . . . . . . . . . . . . 3 Cargo Convoy Interrupts . | . . . . . . . . . . . . . . . . . . . . . . . . . . . . . . . . . . Stealth | -11 -10 -10 -9 -9 -9 -8 -8 -7 -7 -7 -7 -6 -6 -6 -6 -6 -5 -5 -5 -5 -5 -4 -4 -4 -4 -4 -3 -3 -3 -2 -2 -2 -1 --------- Run | Yrd Mat Min Mat Min Exi Min Mat Fac Low Low Dat Pro Fac Low Low Zio Pro Fac Upp Upp Zhi Pro Fac Upp Upp War Pro Res Qua Res Tes Frg Acc Distress Signals 21 | . 1 . . . . . 1 . . . . . . . . . . 1 . . . . 1 . . . . . 2 12 2 . 1 Communications Jammed 4 | . . . . . . . . . . . . . . . . . . . . . . . . . . . . . . 3 1 . . Distress Signals 4 | . . . . . . . . . . . . . . . . . . . . . . . . . . . . . . 3 1 . . Times Spotted 282 | . 8 20 8 3 . 6 15 11 . 3 . 9 10 . . . 13 34 5 1 . 2 19 6 2 4 8 6 17 28 7 26 11 Peak Tracking Total 23 | . 5 23 5 3 10 5 11 5 . 4 . 5 5 . . . 5 9 5 1 . 4 8 5 2 6 4 4 8 6 9 5 5 Tactical Retreats 45 | . . 2 . . 1 1 1 2 . 1 . 4 4 . . . 4 8 . . . 2 5 1 1 . . 1 1 5 . . 1 Traps | -11 -10 -10 -9 -9 -9 -8 -8 -7 -7 -7 -7 -6 -6 -6 -6 -6 -5 -5 -5 -5 -5 -4 -4 -4 -4 -4 -3 -3 -3 -2 -2 -2 -1 ------- Run | Yrd Mat Min Mat Min Exi Min Mat Fac Low Low Dat Pro Fac Low Low Zio Pro Fac Upp Upp Zhi Pro Fac Upp Upp War Pro Res Qua Res Tes Frg Acc Traps Triggered 14 | . . . . . . . . . . . . . . . . . . . . . . . . 1 1 . . . . 1 . 9 2 Indirectly . | . . . . . . . . . . . . . . . . . . . . . . . . . . . . . . . . . . Trap Hack Attempts . | . . . . . . . . . . . . . . . . . . . . . . . . . . . . . . . . . . Triggered . | . . . . . . . . . . . . . . . . . . . . . . . . . . . . . . . . . . Disarmed . | . . . . . . . . . . . . . . . . . . . . . . . . . . . . . . . . . . Reprogrammed . | . . . . . . . . . . . . . . . . . . . . . . . . . . . . . . . . . . Reused 1 | . . . . . . . . . . . . . . . . . . . . . . . . 1 . . . . . . . . . Traps Extracted . | . . . . . . . . . . . . . . . . . . . . . . . . . . . . . . . . . . Installed 2 | . . . . . . . . . . . . . . . . . . . . . . . . 2 . . . . . . . . . Triggered 1 | . . . . . . . . . . . . . . . . . . . . . . . . 1 . . . . . . . . . Most Traps Carried 9 | . . . . . . . . . . . . . . . 6 6 6 6 6 6 6 9 8 8 3 3 . . . . . . . Machines | -11 -10 -10 -9 -9 -9 -8 -8 -7 -7 -7 -7 -6 -6 -6 -6 -6 -5 -5 -5 -5 -5 -4 -4 -4 -4 -4 -3 -3 -3 -2 -2 -2 -1 ---------- Run | Yrd Mat Min Mat Min Exi Min Mat Fac Low Low Dat Pro Fac Low Low Zio Pro Fac Upp Upp Zhi Pro Fac Upp Upp War Pro Res Qua Res Tes Frg Acc Machines Disabled 44 | . 1 . . . 3 . 1 1 . 1 . . . . . . . 6 . . 1 . . . . . . 5 4 1 7 12 1 Max in Single Turn 5 | . 1 . . . 1 . 1 1 . 1 . . . . . . . 5 . . 1 . . . . . . 2 1 1 1 1 1 Garrison Access 7 | . . . . . . . . . . . . . 1 . . . . 2 . . . . 1 . . . . . . 2 . 1 . Machines Repaired . | . . . . . . . . . . . . . . . . . . . . . . . . . . . . . . . . . . Machines Dismantled 1 | . . . . . . . . . . . . . . . . . . 1 . . . . . . . . . . . . . . . Machines Sabotaged . | . . . . . . . . . . . . . . . . . . . . . . . . . . . . . . . . . . Overloaded Fab Kills . | . . . . . . . . . . . . . . . . . . . . . . . . . . . . . . . . . . Hacking | -11 -10 -10 -9 -9 -9 -8 -8 -7 -7 -7 -7 -6 -6 -6 -6 -6 -5 -5 -5 -5 -5 -4 -4 -4 -4 -4 -3 -3 -3 -2 -2 -2 -1 --------- Run | Yrd Mat Min Mat Min Exi Min Mat Fac Low Low Dat Pro Fac Low Low Zio Pro Fac Upp Upp Zhi Pro Fac Upp Upp War Pro Res Qua Res Tes Frg Acc Machines Accessed 96 | . 6 . . . 1 . 7 9 . 1 4 . 9 1 1 . . 14 . . 4 . 8 . 1 6 . 2 2 5 4 9 2 Terminals 50 | . 4 . . . . . 6 5 . . . . 4 . 1 . . 9 . . . . 4 . . . . 1 2 1 4 7 2 Fabricators 4 | . . . . . . . . 2 . . . . 1 . . . . 1 . . . . . . . . . . . . . . . Repair Stations 4 | . . . . . . . . 1 . . . . . . . . . 1 . . . . 1 . . . . . . 1 . . . Recycling Units 10 | . 2 . . . . . . 1 . . . . 2 . . . . 1 . . . . 2 . . . . 1 . 1 . . . Scanalyzers 3 | . . . . . . . 1 . . . . . 1 . . . . . . . . . . . . . . . . . . 1 . Garrison Access 7 | . . . . . . . . . . . . . 1 . . . . 2 . . . . 1 . . . . . . 2 . 1 . Total Hacks 356 | . 12 . . . 1 . 25 30 . 1 32 . 28 1 1 . . 56 . . 17 . 25 . 1 14 . 12 16 28 18 33 5 Successful 264 | . 7 . . . 1 . 16 22 . 1 32 . 25 1 1 . . 42 . . 17 . 22 . 1 14 . 8 9 11 7 26 1 Failed 92 | . 5 . . . . . 9 8 . . . . 3 . . . . 14 . . . . 3 . . . . 4 7 17 11 7 4 Catastrophic 8 | . . . . . . . 1 . . . . . . . . . . 1 . . . . . . . . . 1 2 1 1 . 1 Database Lockouts . | . . . . . . . . . . . . . . . . . . . . . . . . . . . . . . . . . . Manual 162 | . 9 . . . 1 . 17 21 . . . . 18 . . . . 31 . . . . 16 . . 1 . 9 9 8 6 16 . Terminals 201 | . 9 . . . . . 22 20 . . . . 12 . 1 . . 45 . . . . 12 . . . . 7 16 4 18 30 5 Fabricators 14 | . . . . . . . . 6 . . . . 3 . . . . 5 . . . . . . . . . . . . . . . Repair Stations 11 | . . . . . . . . 2 . . . . . . . . . 1 . . . . 3 . . . . . . 5 . . . Recycling Units 39 | . 3 . . . . . . 2 . . . . 9 . . . . 2 . . . . 9 . . . . 5 . 9 . . . Scanalyzers 8 | . . . . . . . 3 . . . . . 3 . . . . . . . . . . . . . . . . . . 2 . Garrison Access 16 | . . . . . . . . . . . . . 1 . . . . 3 . . . . 1 . . . . . . 10 . 1 . Terminal Hacks 139 | . 1 . . . 1 . 6 8 . 1 32 . 5 1 1 . . 18 . . 17 . 3 . 1 14 . 2 5 1 4 17 1 Record 27 | . . . . . . . . . . 1 11 . . . 1 . . . . . 5 . . . . 8 . . . . . 1 . Part Schematic 20 | . . . . . . . 2 1 . . 12 . . . . . . 1 . . 4 . . . . . . . . . . . . Robot Schematic 6 | . . . . . . . . . . . 6 . . . . . . . . . . . . . . . . . . . . . . Robot Analysis 7 | . 1 . . . . . . . . . . . . . . . . 1 . . 4 . . . . . . . . . 1 . . Prototype ID Bank 15 | . . . . . . . . . . . 3 . . . . . . 1 . . 4 . . . . 4 . . 1 . 1 1 . Open Door 5 | . . . . . . . . . . . . . . 1 . . . . . . . . . . 1 2 . . . . . . 1 Level Access Points 2 | . . . . . . . 1 . . . . . . . . . . . . . . . . . . . . . . . . 1 . Branch Access Points 6 | . . . . . . . 1 1 . . . . 1 . . . . 1 . . . . 1 . . . . 1 . . . . . Emergency Access Points 2 | . . . . . . . . . . . . . . . . . . . . . . . 1 . . . . . . . . 1 . Machine Index 1 | . . . . . . . . . . . . . 1 . . . . . . . . . . . . . . . . . . . . Terminal Index 4 | . . . . . . . . 1 . . . . 1 . . . . 1 . . . . . . . . . . . . . 1 . Fabricator Index 2 | . . . . . . . . 1 . . . . 1 . . . . . . . . . . . . . . . . . . . . Garrison Index 1 | . . . . . . . . . . . . . . . . . . . . . . . 1 . . . . . . . . . . Alert Level 2 | . . . . . . . . . . . . . . . . . . 1 . . . . . . . . . . . . . 1 . Unreport Threat 7 | . . . . . . . . . . . . . . . . . . 2 . . . . . . . . . . 2 . . 3 . Locate Traps 7 | . . . . . . . 1 1 . . . . 1 . . . . 1 . . . . . . . . . . 1 . . 2 . Maintenance Status 2 | . . . . . . . . 1 . . . . . . . . . . . . . . . . . . . . . . . 1 . Security Status 1 | . . . . . . . . . . . . . . . . . . . . . . . . . . . . . . . . 1 . Surveillance Status 1 | . . . . . . . . . . . . . . . . . . 1 . . . . . . . . . . . . . . . Patrol Status 2 | . . . . . . . . . . . . . . . . . . . . . . . . . . . . 1 . . . 1 . Recall Investigation 1 | . . . . . . . . . . . . . . . . . . . . . . . . . . . . . . . . 1 . Recall Extermination 2 | . . . . . . . . 1 . . . . . . . . . 1 . . . . . . . . . . . . . . . Recall Reinforcements 2 | . . . . . . . . . . . . . . . . . . 2 . . . . . . . . . . . . . . . Registered Components 1 | . . . . . . . . . . . . . . . . . . 1 . . . . . . . . . . . . . . . Registered Prototypes 1 | . . . . . . . . . . . . . . . . . . 1 . . . . . . . . . . . . . . . Zone Layout 9 | . . . . . . . 1 1 . . . . . . . . . 3 . . . . . . . . . . 1 1 1 1 . Proto ID Catalog 2 | . . . . . 1 . . . . . . . . . . . . . . . . . . . . . . . . . . 1 . Protovariant Controls 1 | . . . . . . . . . . . . . . . . . . . . . . . . . . . . . . . 1 . . Fabricator Hacks 10 | . . . . . . . . 5 . . . . 2 . . . . 3 . . . . . . . . . . . . . . . Network Status 1 | . . . . . . . . . . . . . . . . . . 1 . . . . . . . . . . . . . . . Load Schematic 5 | . . . . . . . . 3 . . . . 1 . . . . 1 . . . . . . . . . . . . . . . Build 4 | . . . . . . . . 2 . . . . 1 . . . . 1 . . . . . . . . . . . . . . . Repair Station Hacks 5 | . . . . . . . . . . . . . . . . . . . . . . . 2 . . . . . . 3 . . . Scan Component 3 | . . . . . . . . . . . . . . . . . . . . . . . 1 . . . . . . 2 . . . Repair 2 | . . . . . . . . . . . . . . . . . . . . . . . 1 . . . . . . 1 . . . Recycling Unit Hacks 11 | . 2 . . . . . . . . . . . 1 . . . . . . . . . 3 . . . . 2 . 3 . . . Retrieve Matter 4 | . . . . . . . . . . . . . . . . . . . . . . . 1 . . . . 1 . 2 . . . Retrieve Components 7 | . 2 . . . . . . . . . . . 1 . . . . . . . . . 2 . . . . 1 . 1 . . . Scanalyzer 6 | . . . . . . . 2 . . . . . 3 . . . . . . . . . . . . . . . . . . 1 . Insert Component 4 | . . . . . . . 1 . . . . . 2 . . . . . . . . . . . . . . . . . . 1 . Analyze 2 | . . . . . . . 1 . . . . . 1 . . . . . . . . . . . . . . . . . . . . Garrison Access Hacks 6 | . . . . . . . . . . . . . 1 . . . . 2 . . . . 1 . . . . . . 1 . 1 . Seal Access 6 | . . . . . . . . . . . . . 1 . . . . 2 . . . . 1 . . . . . . 1 . 1 . Unauthorized Hacks 87 | . 4 . . . . . 8 9 . . . . 13 . . . . 19 . . . . 13 . . . . 4 4 3 3 7 . Terminals 58 | . 4 . . . . . 8 5 . . . . 6 . . . . 14 . . . . 6 . . . . 2 4 . 3 6 . Track 4 | . . . . . . . 1 . . . . . . . . . . 1 . . . . . . . . . . . . 1 1 . Assimilate 7 | . . . . . . . . 1 . . . . 3 . . . . 1 . . . . 1 . . . . . . . 1 . . Botnet 24 | . 1 . . . . . 3 3 . . . . 2 . . . . 6 . . . . 2 . . . . 1 2 . 1 3 . Operators 2 | . . . . . . . . . . . . . . . . . . 1 . . . . . . . . . . . . . 1 . Skim 21 | . 3 . . . . . 4 1 . . . . 1 . . . . 5 . . . . 3 . . . . 1 2 . . 1 . Fabricators 4 | . . . . . . . . 1 . . . . 1 . . . . 2 . . . . . . . . . . . . . . . Prioritize 3 | . . . . . . . . 1 . . . . 1 . . . . 1 . . . . . . . . . . . . . . . Haulers 1 | . . . . . . . . . . . . . . . . . . 1 . . . . . . . . . . . . . . . Repair Stations 3 | . . . . . . . . 1 . . . . . . . . . 1 . . . . 1 . . . . . . . . . . Mechanics 1 | . . . . . . . . . . . . . . . . . . . . . . . 1 . . . . . . . . . . Patch 2 | . . . . . . . . 1 . . . . . . . . . 1 . . . . . . . . . . . . . . . Recycling Units 19 | . . . . . . . . 2 . . . . 6 . . . . 2 . . . . 6 . . . . 2 . 1 . . . Monitor 2 | . . . . . . . . . . . . . 1 . . . . . . . . . 1 . . . . . . . . . . Reject 6 | . . . . . . . . 1 . . . . 1 . . . . 1 . . . . 2 . . . . 1 . . . . . Recyclers 3 | . . . . . . . . . . . . . 2 . . . . . . . . . 1 . . . . . . . . . . Mask 8 | . . . . . . . . 1 . . . . 2 . . . . 1 . . . . 2 . . . . 1 . 1 . . . Scanalyzers 1 | . . . . . . . . . . . . . . . . . . . . . . . . . . . . . . . . 1 . Researchers 1 | . . . . . . . . . . . . . . . . . . . . . . . . . . . . . . . . 1 . Garrison Access 2 | . . . . . . . . . . . . . . . . . . . . . . . . . . . . . . 2 . . . Broadcast 1 | . . . . . . . . . . . . . . . . . . . . . . . . . . . . . . 1 . . . Watchers 1 | . . . . . . . . . . . . . . . . . . . . . . . . . . . . . . 1 . . . Data Cores Recovered 3 | . . . . . . . 2 . . . . . . . . . . . . . . . . . . . . . . . . 1 . Used . | . . . . . . . . . . . . . . . . . . . . . . . . . . . . . . . . . . Hacking Detections 56 | . 4 . . . . . 6 8 . . . . 6 . . . . 11 . . . . 4 . . . . 2 2 3 4 4 2 Full Trace Events 6 | . . . . . . . 1 2 . . . . 1 . . . . 1 . . . . . . . . . . . . 1 . . Feedback Events . | . . . . . . . . . . . . . . . . . . . . . . . . . . . . . . . . . . Feedback Blocked . | . . . . . . . . . . . . . . . . . . . . . . . . . . . . . . . . . . Robot Schematics Acquired 6 | . . . . . . . . . . . 6 . . . . . . . . . . . . . . . . . . . . . . Robots Built . | . . . . . . . . . . . . . . . . . . . . . . . . . . . . . . . . . . Authchips . | . . . . . . . . . . . . . . . . . . . . . . . . . . . . . . . . . . Time . | . . . . . . . . . . . . . . . . . . . . . . . . . . . . . . . . . . Total Robot Build Rating . | . . . . . . . . . . . . . . . . . . . . . . . . . . . . . . . . . . Part Schematics Acquired 23 | . . . . . . . 2 1 . . 12 . 1 . . . . 1 . . 4 . . . . . . . . . . 2 . Parts Built 4 | . . . . . . . . 2 . . . . 1 . . . . 1 . . . . . . . . . . . . . . . Authchips . | . . . . . . . . . . . . . . . . . . . . . . . . . . . . . . . . . . Time 308 | . . . . . . . . 174 . . . . 76 . . . . 58 . . . . . . . . . . . . . . . Total Part Build Rating 14 | . . . . . . . . 6 . . . . 5 . . . . 3 . . . . . . . . . . . . . . . Parts Repaired 2 | . . . . . . . . . . . . . . . . . . . . . . . 1 . . . . . . 1 . . . Time 80 | . . . . . . . . . . . . . . . . . . . . . . . 60 . . . . . . 20 . . . Parts Recycled . | . . . . . . . . . . . . . . . . . . . . . . . . . . . . . . . . . . Recycled Matter . | . . . . . . . . . . . . . . . . . . . . . . . . . . . . . . . . . . Retrieved Matter . | . . . . . . . . . . . . . . . . . . . . . . . . . . . . . . . . . . Retrieved Components 6 | . 3 . . . . . . . . . . . . . . . . . . . . . 3 . . . . . . . . . . Parts Scanalyzed 2 | . . . . . . . 1 . . . . . 1 . . . . . . . . . . . . . . . . . . . . Part Schematics Acquired 1 | . . . . . . . . . . . . . 1 . . . . . . . . . . . . . . . . . . . . Parts Damaged . | . . . . . . . . . . . . . . . . . . . . . . . . . . . . . . . . . . Bothacking | -11 -10 -10 -9 -9 -9 -8 -8 -7 -7 -7 -7 -6 -6 -6 -6 -6 -5 -5 -5 -5 -5 -4 -4 -4 -4 -4 -3 -3 -3 -2 -2 -2 -1 ------------ Run | Yrd Mat Min Mat Min Exi Min Mat Fac Low Low Dat Pro Fac Low Low Zio Pro Fac Upp Upp Zhi Pro Fac Upp Upp War Pro Res Qua Res Tes Frg Acc Used RIF Installer . | . . . . . . . . . . . . . . . . . . . . . . . . . . . . . . . . . . Robots Hacked 4 | . . . . . . . . . . . . . . . . . . . . . . . . . . . . . . 4 . . . Non-combat . | . . . . . . . . . . . . . . . . . . . . . . . . . . . . . . . . . . Combat 3 | . . . . . . . . . . . . . . . . . . . . . . . . . . . . . . 3 . . . Robot Hacks Applied 4 | . . . . . . . . . . . . . . . . . . . . . . . . . . . . . . 4 . . . parse_system 4 | . . . . . . . . . . . . . . . . . . . . . . . . . . . . . . 4 . . . Manual 2 | . . . . . . . . . . . . . . . . . . . . . . . . . . . . . . 2 . . . Relay Couplers Released 4 | . . . . . . . . . . . . . . . . . . . . . . . . . . . . . . 2 . 2 . Machine Destruction 4 | . . . . . . . . . . . . . . . . . . . . . . . . . . . . . . 2 . 2 . Fabnet Peak Effective % . | . . . . . . . . . . . . . . . . . . . . . . . . . . . . . . . . . . Robots Rewired . | . . . . . . . . . . . . . . . . . . . . . . . . . . . . . . . . . . Allies Hacked . | . . . . . . . . . . . . . . . . . . . . . . . . . . . . . . . . . . Hacks Repelled . | . . . . . . . . . . . . . . . . . . . . . . . . . . . . . . . . . . Allies | -11 -10 -10 -9 -9 -9 -8 -8 -7 -7 -7 -7 -6 -6 -6 -6 -6 -5 -5 -5 -5 -5 -4 -4 -4 -4 -4 -3 -3 -3 -2 -2 -2 -1 -------- Run | Yrd Mat Min Mat Min Exi Min Mat Fac Low Low Dat Pro Fac Low Low Zio Pro Fac Upp Upp Zhi Pro Fac Upp Upp War Pro Res Qua Res Tes Frg Acc Total Allies 13 | . . 1 . . . . . 1 . . . . 2 . . . . 1 . . . . 1 . . . . . . 6 1 . . Largest Group 5 | . . 1 . . . . . 1 . . . . 2 . . . . 1 . . . . 1 . . . . . . 5 1 . . Highest-Rated Group 716 | . . 31 . . . . . 26 . . . . 36 . . . . 26 . . . . 10 . . . . . . 716 148 . . Highest-Rated Ally 361 | . . 31 . . . . . 26 . . . . 26 . . . . 26 . . . . 10 . . . . . . 361 148 . . Total Orders 14 | . . . . . . . . 2 . . . . . . . . . . . . . . . . . . 5 3 2 2 . . . STAY 1 | . . . . . . . . 1 . . . . . . . . . . . . . . . . . . . . . . . . . FOLLOW 1 | . . . . . . . . 1 . . . . . . . . . . . . . . . . . . . . . . . . . RETURN 12 | . . . . . . . . . . . . . . . . . . . . . . . . . . . 5 3 2 2 . . . Ally Attacks 83 | . . 8 . . . . . . . . . . . . . . . . . . . . . . . . . . . 74 1 . . Total Damage 3286 | . . 145 . . . . . . . . . . . . . . . . . . . . . . . . . . . 3100 41 . . Kills 12 | . . 1 . . . . . . . . . . . . . . . . . . . . . . . . . . . 11 . . . Allies Corrupted . | . . . . . . . . . . . . . . . . . . . . . . . . . . . . . . . . . . Allies Melted . | . . . . . . . . . . . . . . . . . . . . . . . . . . . . . . . . . . Intel | -11 -10 -10 -9 -9 -9 -8 -8 -7 -7 -7 -7 -6 -6 -6 -6 -6 -5 -5 -5 -5 -5 -4 -4 -4 -4 -4 -3 -3 -3 -2 -2 -2 -1 ------- Run | Yrd Mat Min Mat Min Exi Min Mat Fac Low Low Dat Pro Fac Low Low Zio Pro Fac Upp Upp Zhi Pro Fac Upp Upp War Pro Res Qua Res Tes Frg Acc Active Infowar (turns) 10688 | 17 166 192 83 38 138 266 125 573 114 188 21 174 240 124 182 327 542 70 767 277 94 1090 457 401 265 352 972 171 123 700 132 1028 279 Optics 2717 | . . . . . . . . . . . . . . . . . . . . . . . 186 401 265 352 972 171 123 247 . . . Sensors 6999 | . 17 192 83 38 138 266 125 548 114 174 . . 229 124 182 327 502 54 767 277 94 1090 333 . . . . . . 454 132 739 . A.S.S. 513 | . . . . . . . . . . . . . . . . . . . . . . . . . . . . . . . . 234 279 IFF 3 | . . . . . . . . . . . . . 3 . . . . . . . . . . . . . . . . . . . . Terrain 169 | 17 149 . . . . . . . . . . . . . . . . . . . . . 3 . . . . . . . . . . Structural 274 | . . . . . . . . . . . . . . . . . . . . . . . . . . . . . . . . . 274 Traps 218 | . . . . . . . . . . 14 21 172 11 . . . . . . . . . . . . . . . . . . . . Decoding 93 | . . . . . . . . . . . . . . . . . . . . . . . . . . 93 . . . . . . . T.N.C. 32 | . . . . . . . . 32 . . . . . . . . . . . . . . . . . . . . . . . . . Jamming 729 | . . . . . . . . . . . . . . . . . . . . . . . . . . . . . . 255 86 388 . ECM 251 | . . . . . . . . . . . . 2 . . . . 40 16 193 . . . . . . . . . . . . . . Robot Analysis Total 7 | . 1 . . . . . . . . . . . . . . . . 1 . . 4 . . . . . . . . . 1 . . Derelict Logs Recovered 18 | . . 2 . 1 . . . . 2 . . . . . 2 1 3 . 1 1 . 2 . 1 2 . . . . . . . . Drone Launches 24 | . . . . . . . . . . . . . . . . . . . . . . . . . . . 11 9 2 2 . . . Drone Recoveries 23 | . . . . . . . . . . . . . . . . . . . . . . . . . . . 11 9 1 2 . . . Exploration | -11 -10 -10 -9 -9 -9 -8 -8 -7 -7 -7 -7 -6 -6 -6 -6 -6 -5 -5 -5 -5 -5 -4 -4 -4 -4 -4 -3 -3 -3 -2 -2 -2 -1 ------------- Run | Yrd Mat Min Mat Min Exi Min Mat Fac Low Low Dat Pro Fac Low Low Zio Pro Fac Upp Upp Zhi Pro Fac Upp Upp War Pro Res Qua Res Tes Frg Acc Turns Passed 12001 | 81 178 192 83 38 138 267 167 574 114 198 21 174 385 124 193 345 565 546 788 285 167 1153 457 401 265 352 972 171 123 700 132 1373 279 Spaces Moved 19111 | 53 339 446 84 85 318 340 308 1190 400 501 81 464 657 359 421 1290 779 931 450 561 332 684 699 263 665 766 607 285 280 1738 462 1576 697 Core 207 | 53 127 . . . . . 1 . . . . . 8 . . . 1 4 . 1 . . . 12 . . . . . . . . . Treads . | . . . . . . . . . . . . . . . . . . . . . . . . . . . . . . . . . . Legs . | . . . . . . . . . . . . . . . . . . . . . . . . . . . . . . . . . . Wheels . | . . . . . . . . . . . . . . . . . . . . . . . . . . . . . . . . . . Hover . | . . . . . . . . . . . . . . . . . . . . . . . . . . . . . . . . . . Flight 18904 | . 212 446 84 85 318 340 307 1190 400 501 81 464 649 359 421 1290 778 927 450 560 332 684 699 251 665 766 607 285 280 1738 462 1576 697 Fastest Speed 9 | 50 37 37 31 37 40 31 31 26 26 26 26 26 24 24 24 24 24 26 28 32 32 32 32 29 28 25 26 19 19 19 9 9 9 Average Speed 36 | 63 41 37 33 39 40 33 32 27 26 26 26 29 32 24 25 24 37 36 59 34 37 141 43 99 28 39 95 41 22 20 11 23 9 Slowest Speed 500 | 150 50 37 37 40 40 111 300 31 26 26 26 103 250 24 84 84 500 300 105 250 184 184 117 275 108 112 98 98 23 27 99 158 10 Overloaded Moves 37 | . . . . . . . . . . . . . . . . . . . . . . . . . . . . . . . 7 29 1 Propulsion Burnouts . | . . . . . . . . . . . . . . . . . . . . . . . . . . . . . . . . . . Robots Hopped 66 | . . . 1 1 . 4 3 19 . . . 2 4 . 1 . 3 1 . . . . 9 . . . . 9 2 3 1 1 2 Potential Cave-ins 20 | . . . . . . . . . . . . 4 . . . . 4 . . . . 5 2 . . . . 5 . . . . . Cave-ins Triggered 1 | . . . . . . . . . . . . . . . . . . . . . . 1 . . . . . . . . . . . Teleports 1 | . . . . . . . . . . . . . . . . . . . . . . . . . . . . . . . . 1 . Exploration Rate (%) 50 | 4 57 93 16 30 61 62 48 27 48 56 69 64 21 50 57 80 55 26 55 74 60 72 19 49 82 92 66 9 55 54 56 38 23 Regions Visited 33 Branch Regions 23 Pre-discovered Areas 11 | . . 1 . . . . . . . . 1 . . . 2 1 1 . . . 3 . . 1 1 . . . . . . . . Known Exits Taken 26 | . 1 1 . 1 1 1 1 1 1 1 1 1 1 1 1 1 1 1 1 1 1 . 1 . . . . 1 1 1 1 1 . Unknown Exits Taken 7 | 1 . . 1 . . . . . . . . . . . . . . . . . . 1 . 1 1 1 1 . . . . . . Scrap Searched 32 | . . 1 . 1 . 2 . . 11 1 . 1 . 1 1 3 . . 2 2 . 2 . . 4 . . . . . . . . Spaces Dug 463 | . . . . . . 16 2 13 . 3 . 81 14 3 1 . 16 42 33 12 . 36 11 . 27 . 2 87 7 19 3 14 21 Terrain Destroyed 802 | . 12 27 . . . 26 8 13 . 3 . 168 15 3 1 . 19 56 57 22 . 48 15 . 64 . 72 94 7 31 3 17 21 Melee 95 | . . . . . . . 2 13 . 3 . . 3 . . . 1 6 . . . . . . . . 1 2 7 19 3 14 21 Projectile 202 | . . . . . . . . . . . . . 12 3 1 . 18 10 7 22 . 48 15 . . . 46 20 . . . . . AOE 502 | . 12 27 . . . 26 6 . . . . 168 . . . . . 40 50 . . . . . 64 . 25 72 . 12 . . . Terrain Rammed . | . . . . . . . . . . . . . . . . . . . . . . . . . . . . . . . . . . Walls Destroyed . | . . . . . . . . . . . . . . . . . . . . . . . . . . . . . . . . . . Machines Disabled . | . . . . . . . . . . . . . . . . . . . . . . . . . . . . . . . . . . Actions | -11 -10 -10 -9 -9 -9 -8 -8 -7 -7 -7 -7 -6 -6 -6 -6 -6 -5 -5 -5 -5 -5 -4 -4 -4 -4 -4 -3 -3 -3 -2 -2 -2 -1 --------- Run | Yrd Mat Min Mat Min Exi Min Mat Fac Low Low Dat Pro Fac Low Low Zio Pro Fac Upp Upp Zhi Pro Fac Upp Upp War Pro Res Qua Res Tes Frg Acc Total 23102 | 82 366 462 107 88 323 417 363 1335 411 560 80 491 795 394 498 1322 1026 1074 961 626 364 816 818 399 731 810 963 312 311 2003 519 2427 848 Wait 2436 | 2 2 1 . . . 19 34 79 . 53 . . 72 28 64 . 212 45 483 23 5 60 69 123 50 11 321 8 1 124 2 464 81 Move 18952 | 52 338 445 81 82 317 332 301 1157 399 500 80 459 648 358 418 1289 772 928 449 560 331 682 680 262 664 765 606 269 275 1731 459 1572 691 Hop 56 | . . . 1 1 . 3 3 13 . . . 2 4 . 1 . 3 1 . . . . 9 . . . . 6 2 3 1 1 2 Pick Up 135 | 4 5 1 2 1 . 3 4 5 8 1 . 1 5 1 1 11 1 12 3 1 3 1 4 . 1 2 . 4 5 8 5 31 1 Fast Attach 203 | 4 4 . 1 1 . 7 3 13 . 1 . 2 7 . . 8 . 9 3 1 5 6 8 6 3 16 3 5 2 33 16 35 1 Attach 107 | . 2 1 2 . 1 . 2 3 . . . 5 13 1 2 . 5 12 6 5 1 2 9 2 3 . . 2 2 6 . 17 3 Detach 105 | 2 1 1 1 . 1 1 2 3 . . . 5 14 1 2 1 5 11 4 6 1 2 6 2 2 2 . 2 2 9 3 12 1 Swap 58 | . . . 1 . . 6 2 2 . . . 2 1 . 2 . 2 3 1 . 1 3 . . . 2 1 1 . 7 1 16 4 Drop 233 | 1 5 1 2 3 . 7 6 13 4 1 . 4 7 2 1 13 2 13 2 2 5 8 8 1 2 11 1 1 3 33 20 49 2 Fire 397 | 17 9 12 16 . 2 39 1 . . . . 11 14 3 7 . 23 13 10 28 12 51 25 1 6 . 30 11 . 8 . 48 . Melee 275 | . . . . . 2 . 5 47 . 4 . . 10 . . . 1 23 . . . . . . . 1 1 3 19 41 12 63 43 Ram . | . . . . . . . . . . . . . . . . . . . . . . . . . . . . . . . . . . Kick . | . . . . . . . . . . . . . . . . . . . . . . . . . . . . . . . . . . Crush . | . . . . . . . . . . . . . . . . . . . . . . . . . . . . . . . . . . Escape Stasis 139 | . . . . . . . . . . . . . . . . . . . . . . 1 . . . . . . . . . 119 19 Rewire . | . . . . . . . . . . . . . . . . . . . . . . . . . . . . . . . . . . Trap 2 | . . . . . . . . . . . . . . . . . . . . . . . . 2 . . . . . . . . . Miscellaneous 4 | . . . . . . . . . . . . . . . . . . 4 . . . . . . . . . . . . . . . Route ------- -11/Scrapyard -10/Materials (discovered 3 exits: *Mat x2 / *Min) -10/Mines (discovered 2 exits: *Mat x2) -9/Materials -9/Mines -9/Exiles -8/Mines -8/Materials (discovered 3 exits: *Fac x3) -7/Factory (discovered 2 exits: *Low x2) -7/Lower Caves -7/Lower Caves -7/Data Miner -6/Proximity Caves -6/Factory (discovered 2 exits: *Low x2) -6/Lower Caves -6/Lower Caves -6/Zion -5/Proximity Caves -5/Factory (discovered 2 exits: *Upp x2) -5/Upper Caves -5/Upper Caves (discovered 2 exits: *Fac / *Zhi) -5/Zhirov -4/Proximity Caves -4/Factory (discovered 5 exits: *Upp x2 / Ext x2 / Arm) -4/Upper Caves -4/Upper Caves (discovered 2 exits: *Res / *War) -4/Warlord -3/Proximity Caves -3/Research (discovered 3 exits: Res / *Qua x2) -3/Quarantine -2/Research (discovered 2 exits: *Tes x2) -2/Testing (discovered 2 exits: [*Sec] / *Frg) -2/Protoforge -1/Access To Epsilon Eridani History --------- Turn | Location | Event 25 | -11/Scrapyard | Discovered new exit (range 14) 82 | -11/Scrapyard | Entered Materials 120 | -10/Materials | Discovered new exit (range 6) 130 | -10/Materials | Identified exit to Mines 136 | -10/Materials | Discovered new exit (range 15) 169 | -10/Materials | Discovered new exit (range 13) 260 | -10/Materials | Entered Mines 276 | -10/Mines | Assembled infested the area 279 | -10/Mines | Received a Rocket Launcher from a helpful Derelict 280 | -10/Mines | Met a Derelict bent on vengeance 281 | -10/Mines | Assisted by a Guerilla fighting off Assembled 323 | -10/Mines | Destroyed 13 combat bots 325 | -10/Mines | Build established: Mutant 356 | -10/Mines | Met a Derelict testing a Signal Generator 377 | -10/Mines | Discovered new exit (range 5) 378 | -10/Mines | Identified exit to Materials 385 | -10/Mines | Learned 2 Materials zone layouts 392 | -10/Mines | Discovered exit to Materials (range 10) 452 | -10/Mines | Entered Materials 452 | -9/Materials | Evolved 2 slots: Propulsion x2 531 | -9/Materials | Discovered new exit (range 10) 535 | -9/Materials | Entered Mines 537 | -9/Mines | Learned Materials trap positions 538 | -9/Mines | Found a damaged Exp. Sensor Array with a note attached 539 | -9/Mines | Found Prototype Device 571 | -9/Mines | Deemed a non-threat by the Exiles lab entrance 571 | -9/Mines | Discovered new exit (range 5) 573 | -9/Mines | Identified exit to Exiles 573 | -9/Mines | Entered Exiles 583 | -9/Exiles | Met 8R-AWN 590 | -9/Exiles | Met EX-HEX 602 | -9/Exiles | Met EX-BIN 626 | -9/Exiles | Aligned with FarCom system 627 | -9/Exiles | Given EX-Vault access code 637 | -9/Exiles | Opened EX-Vault 648 | -9/Exiles | Warned to stay clear of 0b10 Research branches 659 | -9/Exiles | Met EX-DEC 696 | -9/Exiles | Attacked by the Exiles 706 | -9/Exiles | Discovered new exit (range 14) 710 | -9/Exiles | Identified exit to Mines 711 | -9/Exiles | Entered Mines 729 | -8/Mines | CL-ANK came to Exiles' defense 794 | -8/Mines | Discovered new exit (range 12) 820 | -8/Mines | Identified exit to Materials 941 | -8/Mines | Destroyed CL-ANK 946 | -8/Mines | Found Prototype Impact Weapon 946 | -8/Mines | Identified CL-ANK's Mallet 948 | -8/Mines | Identified Exp. Sensor Array 978 | -8/Mines | Entered Materials 978 | -8/Materials | Evolved 2 slots: Propulsion x1, Utility x1 979 | -8/Materials | Loaded intel: 10 trap records 1052 | -8/Materials | Identified exit to Factory 1145 | -8/Materials | Entered Factory 1145 | -7/Factory | Evolved 2 slots: Utility x2 1237 | -7/Factory | Discovered new exit (range 15) 1244 | -7/Factory | Identified exit to Lower Caves 1446 | -7/Factory | Fabricated Imp. VTOL Module? 1510 | -7/Factory | Fabricated Imp. VTOL Module? 1563 | -7/Factory | Build established: Hacker-Sprinter 1719 | -7/Factory | Entered Lower Caves 1776 | -7/Lower Caves | Learned Factory garrison access intel 1777 | -7/Lower Caves | Learned Factory stockpile data 1800 | -7/Lower Caves | Found DCF Scrap (15 items) 1830 | -7/Lower Caves | Encountered a Warlord checkpoint 1831 | -7/Lower Caves | Discovered new exit (range 8) 1833 | -7/Lower Caves | Identified exit to Lower Caves 1833 | -7/Lower Caves | Entered another Lower Caves area 2007 | -7/Lower Caves | Spotted B-75 Beast 2019 | -7/Lower Caves | Found Alien Artifact 2026 | -7/Lower Caves | Discovered new exit (range 15) 2027 | -7/Lower Caves | Encountered a Warlord checkpoint 2030 | -7/Lower Caves | Identified exit to Data Miner 2031 | -7/Lower Caves | Entered Data Miner 2031 | -7/Data Miner | Discovered new exit (range 6) 2036 | -7/Data Miner | Met Data Miner 2041 | -7/Data Miner | Learned location of Section 7 (-2) 2041 | -7/Data Miner | Acquired the access code to Warlord's prototype stash 2046 | -7/Data Miner | Received God Mode back door access code from Data Miner 2052 | -7/Data Miner | Identified exit to Proximity Caves 2052 | -7/Data Miner | Entered Proximity Caves 2069 | -6/Proximity Caves | Spotted B-75 Beast 2186 | -6/Proximity Caves | Discovered new exit (range 15) 2188 | -6/Proximity Caves | Attracted the attention of an 0b10 checkpoint 2226 | -6/Proximity Caves | Identified exit to Factory 2226 | -6/Proximity Caves | Entered Factory 2226 | -6/Factory | Evolved 2 slots: Utility x2 2228 | -6/Factory | Loaded intel: 3 garrison access locations 2253 | -6/Factory | Lost 3 parts (1p1n1u) 2372 | -6/Factory | Identified Dimensional Node Initializer 2439 | -6/Factory | Identified exit to Lower Caves 2549 | -6/Factory | Fabricated Lgt. Regenerative Plating (x1) 2611 | -6/Factory | Entered Lower Caves 2672 | -6/Lower Caves | Found Prototype Device 2732 | -6/Lower Caves | Discovered new exit (range 13) 2734 | -6/Lower Caves | Identified exit to Lower Caves 2735 | -6/Lower Caves | Entered another Lower Caves area 2777 | -6/Lower Caves | Encountered a Warlord checkpoint 2787 | -6/Lower Caves | Spotted B-75 Beast 2851 | -6/Lower Caves | Learned location of Zion (-6) 2853 | -6/Lower Caves | Discovered new exit (range 11) 2856 | -6/Lower Caves | Identified exit to Zion 2928 | -6/Lower Caves | Entered Zion 2955 | -6/Zion | Discovered new exit (range 11) 2975 | -6/Zion | Learned Factory emergency access door positions 2978 | -6/Zion | Learned Factory non-interactive machine intel 2983 | -6/Zion | Visited the Megawrench Repair Shop 2991 | -6/Zion | Given the Hacking Drone Bay 3068 | -6/Zion | Found Prototype Device 3068 | -6/Zion | Identified Phasing AFG 3109 | -6/Zion | Found Prototype Device 3109 | -6/Zion | Identified Bomb Factory No. 2 3136 | -6/Zion | Found Prototype Device 3136 | -6/Zion | Identified Hacking Drone Bay 3179 | -6/Zion | Found CR-A16's Pointy Stick 3272 | -6/Zion | Identified exit to Proximity Caves 3273 | -6/Zion | Entered Proximity Caves 3284 | -5/Proximity Caves | Identified exit to Factory 3293 | -5/Proximity Caves | Learned location of Warlord (-4) 3293 | -5/Proximity Caves | Learned Factory interactive machine intel 3476 | -5/Proximity Caves | Received a Behemoth hack from an annoying Tinkerer 3734 | -5/Proximity Caves | Attracted the attention of an 0b10 checkpoint 3838 | -5/Proximity Caves | Entered Factory 3838 | -5/Factory | Evolved 2 slots: Power x1, Propulsion x1 3840 | -5/Factory | Loaded intel: 229 non-interactive machine locations 3841 | -5/Factory | Loaded intel: 53 interactive machine locations 3899 | -5/Factory | Fabricated Imp. VTOL Module (x1) 4168 | -5/Factory | Identified exit to Upper Caves 4262 | -5/Factory | Incoming investigation squad redirected 4384 | -5/Factory | Entered Upper Caves 4772 | -5/Upper Caves | Learned Factory terminal intel 4778 | -5/Upper Caves | Discovered new exit (range 5) 4778 | -5/Upper Caves | Identified exit to Upper Caves 4794 | -5/Upper Caves | Found Alien Artifact 4794 | -5/Upper Caves | Identified Core Expander 4794 | -5/Upper Caves | Installed Core Expander, added new Power slot 5082 | -5/Upper Caves | Build established: Hacker-Mutant 5172 | -5/Upper Caves | Entered another Upper Caves area 5247 | -5/Upper Caves | Discovered new exit (range 12) 5325 | -5/Upper Caves | Learned Factory stockpile data 5434 | -5/Upper Caves | Discovered new exit (range 8) 5436 | -5/Upper Caves | Identified exit to Zhirov 5457 | -5/Upper Caves | Entered Zhirov 5457 | -5/Zhirov | Discovered new exit (range 4) 5463 | -5/Zhirov | Met Zhirov 5470 | -5/Zhirov | Learned location of Quarantine (-3) 5470 | -5/Zhirov | Learned location of Testing (-2) 5470 | -5/Zhirov | Learned location of Command (-1) 5473 | -5/Zhirov | Zhirov requested help retrieving the SGEMP Prototype 5479 | -5/Zhirov | Found Alien Artifact 5479 | -5/Zhirov | Identified Integrated Dissipator 5479 | -5/Zhirov | Installed Integrated Dissipator, increased core heat dissipation (+20) 5572 | -5/Zhirov | Identified exit to Proximity Caves 5585 | -5/Zhirov | Found Alien Artifact 5624 | -5/Zhirov | Entered Proximity Caves 5945 | -4/Proximity Caves | Learned location of 1 exit from Research 6173 | -4/Proximity Caves | Learned Research stockpile data 6679 | -4/Proximity Caves | Crushed by falling debris 6680 | -4/Proximity Caves | System corruption reached 10% 6727 | -4/Proximity Caves | Discovered new exit (range 9) 6777 | -4/Proximity Caves | Entered Factory 6777 | -4/Factory | Evolved 2 slots: Utility x2 6779 | -4/Factory | Loaded intel: 28 terminal locations 6791 | -4/Factory | Found Prototype Device 6791 | -4/Factory | Identified Exp. Thermal Shield 6935 | -4/Factory | Discovered new exit (range 4) 7012 | -4/Factory | Repaired Imp. VTOL Module 7141 | -4/Factory | Lost 3 parts (1p2u) 7158 | -4/Factory | Identified exit to Upper Caves 7158 | -4/Factory | Identified exit to Extension 7158 | -4/Factory | Identified exit to Armory 7234 | -4/Factory | Entered Upper Caves 7247 | -4/Upper Caves | System corruption reached 10% 7271 | -4/Upper Caves | Lost 6 parts (3n2u1w) 7279 | -4/Upper Caves | System corruption reached 30% 7500 | -4/Upper Caves | Spotted B-86 Titan 7512 | -4/Upper Caves | Discovered new exit (range 5) 7635 | -4/Upper Caves | Entered another Upper Caves area 7652 | -4/Upper Caves | Discovered new exit (range 12) 7656 | -4/Upper Caves | Learned 4 Research zone layouts 7659 | -4/Upper Caves | Found DCF Scrap (13 items) 7742 | -4/Upper Caves | Spotted B-86 Titan 7749 | -4/Upper Caves | Attracted the attention of an 0b10 checkpoint 7894 | -4/Upper Caves | Discovered new exit (range 11) 7900 | -4/Upper Caves | Entered Warlord 7905 | -4/Warlord | Lost 3 parts (1n2u) 7911 | -4/Warlord | System corruption cleaned by Quarantine Array 7985 | -4/Warlord | Opened Warlord's prototype stash 7992 | -4/Warlord | Found Prototype Device 7992 | -4/Warlord | Identified Exp. Phase Shifter 7999 | -4/Warlord | Found Prototype Reactor 7999 | -4/Warlord | Identified Vortex Chain Reactor 8002 | -4/Warlord | Found Prototype Hackware 8002 | -4/Warlord | Identified Ghost Barrier 8039 | -4/Warlord | Learned Quarantine stockpile data 8039 | -4/Warlord | Learned 4 Research zone layouts 8039 | -4/Warlord | Learned 4 Access zone layouts 8039 | -4/Warlord | Learned 4 Quarantine zone layouts 8039 | -4/Warlord | Learned 4 Quarantine zone layouts 8039 | -4/Warlord | Learned Quarantine security intel 8039 | -4/Warlord | Learned Factory garrison access intel 8039 | -4/Warlord | Learned Armory fabricator intel 8060 | -4/Warlord | Found Prototype Special Weapon 8060 | -4/Warlord | Identified RU-N14's Throwing Claymores v3 8062 | -4/Warlord | Found RU-N14's Throwing Claymores v3 8064 | -4/Warlord | Warlord's base attacked by MAIN.C 8065 | -4/Warlord | Found RU-N14's Throwing Claymores v3 8082 | -4/Warlord | Met Warlord 8101 | -4/Warlord | Found Prototype Energy Gun 8101 | -4/Warlord | Identified Vortex Rail 8103 | -4/Warlord | Found Prototype Piercing Weapon 8106 | -4/Warlord | Found Prototype Piercing Weapon 8106 | -4/Warlord | Identified Vortex Lance (x2) 8115 | -4/Warlord | Found Vortex Rail 8226 | -4/Warlord | Opened side exit 8245 | -4/Warlord | Discovered new exit (range 9) 8252 | -4/Warlord | Entered Proximity Caves 8397 | -3/Proximity Caves | Build established: Wizard-Mutant 8576 | -3/Proximity Caves | Spotted B-86 Titan 8982 | -3/Proximity Caves | Discovered new exit (range 14) 9224 | -3/Proximity Caves | Entered Research 9224 | -3/Research | Evolved 2 slots: Propulsion x1, Utility x1 9225 | -3/Research | Identified exit to Research 9267 | -3/Research | Identified exit to Quarantine 9276 | -3/Research | Found Fusion Bomb Launcher 9395 | -3/Research | Entered Quarantine 9420 | -3/Quarantine | Discovered exit to Research (range 21) 9436 | -3/Quarantine | Cryocooling Duct disabled 9444 | -3/Quarantine | Cryocooling Duct disabled 9451 | -3/Quarantine | Ambient heat levels rising (+20) 9451 | -3/Quarantine | Non-combat units ordered to evacuate 9458 | -3/Quarantine | Found Alien Slashing Weapon 9458 | -3/Quarantine | Identified Sigix Broadsword 9459 | -3/Quarantine | Ambient heat levels rising (+20) 9459 | -3/Quarantine | Combat units ordered to evacuate 9514 | -3/Quarantine | Found Alien Artifact 9515 | -3/Quarantine | Found Alien Artifact 9518 | -3/Quarantine | Entered Research 9518 | -2/Research | Warlord forces began assault on 0b10 9518 | -2/Research | Evolved 2 slots: Utility x2 9563 | -2/Research | Repaired Broken Xenon Bombardment Thruster 9628 | -2/Research | Research machine network offline 9639 | -2/Research | Spotted B-90 Cyclops 9650 | -2/Research | Discovered new exit (range 8) 9721 | -2/Research | Found Prototype Device 9721 | -2/Research | Identified Exp. Transmission Jammer 9769 | -2/Research | Found Prototype Processor 9769 | -2/Research | Identified Exp. Core Analyzer 9796 | -2/Research | Borebot progress halted 9807 | -2/Research | Found Prototype Device 9807 | -2/Research | Identified Exp. Shield Generator 9847 | -2/Research | Borebot progress halted 9867 | -2/Research | Build established: Wizard-Sprinter 9874 | -2/Research | Found Prototype Device 9874 | -2/Research | Identified Exp. Cloaking Device 9899 | -2/Research | Lost 6 allies 9935 | -2/Research | Found Prototype Launcher 9935 | -2/Research | Identified Ragnarok Missile Launcher 10010 | -2/Research | Spotted Executioner 10038 | -2/Research | Discovered new exit (range 7) 10039 | -2/Research | Identified exit to Testing 10049 | -2/Research | Met up with Warlord 10052 | -2/Research | Took control of God Mode 10052 | -2/Research | Attacked by Warlord forces 10053 | -2/Research | Attacked by Warlord 10069 | -2/Research | Allies destroyed Warlord 10071 | -2/Research | Warlord destroyed during the assault 10078 | -2/Research | Spotted L1-FKL(K) 10093 | -2/Research | Spotted TW-SL0(K) 10105 | -2/Research | Spotted TS-Q84(L) 10105 | -2/Research | Spotted Striker 10106 | -2/Research | Spotted Executioner 10119 | -2/Research | Befriended a Behemoth using the annoying Tinkerer's hack 10179 | -2/Research | Found Exp. Core Analyzer 10182 | -2/Research | Found Exp. Core Analyzer 10218 | -2/Research | Entered Testing 10218 | -2/Testing | Accompanied by 1 ally 10246 | -2/Testing | Found Prototype Device 10246 | -2/Testing | Identified Exp. Hardlight Generator 10259 | -2/Testing | Found Prototype Ballistic Cannon 10259 | -2/Testing | Identified Perforator 10284 | -2/Testing | Found Prototype Device 10284 | -2/Testing | Identified 2N-1CE's Frost Array 10315 | -2/Testing | Found Prototype Energy Gun 10315 | -2/Testing | Identified Hyp. EM Gauss Rifle 10321 | -2/Testing | Spotted PY-VK6M8G4I21 10339 | -2/Testing | Protovariant out of control (PY-VK6M8G4I21) 10339 | -2/Testing | Unleashed a protovariant (PY-VK6M8G4I21) 10342 | -2/Testing | Spotted Fortress 10349 | -2/Testing | Discovered new exit (range 6) 10349 | -2/Testing | Discovered new exit (range 6) 10350 | -2/Testing | Identified exit to Protoforge 10350 | -2/Testing | Entered Protoforge 10395 | -2/Protoforge | Identified exit to Access 10451 | -2/Protoforge | Build established: Hacker-Sprinter 10534 | -2/Protoforge | Initialized slip node 10544 | -2/Protoforge | Identified Transdimensional Reconstructor (x2) 10760 | -2/Protoforge | Spotted Immortal 10760 | -2/Protoforge | Spotted Immortal 10804 | -2/Protoforge | Destroyed Immortal 10816 | -2/Protoforge | Found Cep. Weapon Articulator 10818 | -2/Protoforge | Spotted Immortal 10818 | -2/Protoforge | Spotted Immortal 10829 | -2/Protoforge | Destroyed Immortal 10837 | -2/Protoforge | Destroyed Immortal 10838 | -2/Protoforge | Spotted Decapitator 10838 | -2/Protoforge | Spotted Decapitator 10838 | -2/Protoforge | Spotted Decapitator 10838 | -2/Protoforge | Spotted Decapitator 10847 | -2/Protoforge | Found Prototype Launcher 10847 | -2/Protoforge | Identified Cep. Tactical Fusion Warhead 10849 | -2/Protoforge | Found Prototype Launcher 10849 | -2/Protoforge | Identified Cep. Rapid Grenade Launcher 10852 | -2/Protoforge | Found Cep. Rapid Grenade Launcher 10857 | -2/Protoforge | Found Corrupted Exp. Cloaking Device 10859 | -2/Protoforge | Spotted Immortal 10916 | -2/Protoforge | Destroyed Immortal 10943 | -2/Protoforge | Destroyed Decapitator 10947 | -2/Protoforge | Found Faulty Cep. Tiamat Rocket Array 10954 | -2/Protoforge | Superfortress began startup sequence 10961 | -2/Protoforge | Destroyed Immortal 10966 | -2/Protoforge | Destroyed Decapitator 10967 | -2/Protoforge | System corruption reached 10% 10970 | -2/Protoforge | Destroyed Decapitator 10970 | -2/Protoforge | Destroyed Decapitator 11001 | -2/Protoforge | Lost 4 parts (3u1w) 11004 | -2/Protoforge | Destroyed 8 combat bots 11018 | -2/Protoforge | Found Prototype Device 11018 | -2/Protoforge | Identified Cep. Energy Mantle 11020 | -2/Protoforge | Found Prototype Device 11020 | -2/Protoforge | Identified Cep. Phase Shift Module 11024 | -2/Protoforge | Found Cep. Reaction Jets 11032 | -2/Protoforge | Found Cep. Projectile Intercept Suite 11034 | -2/Protoforge | Found Cep. RG22 Armor 11058 | -2/Protoforge | Found Faulty Cep. RG22 Armor 11064 | -2/Protoforge | Found Prototype Device 11064 | -2/Protoforge | Identified Crosscalibrator 11152 | -2/Protoforge | Found Cep. Disintegration Ray 11153 | -2/Protoforge | Found Cep. Lightning Penetrator 11182 | -2/Protoforge | Found Faulty Cep. Disintegration Ray 11346 | -2/Protoforge | Found Femtoactuators 11356 | -2/Protoforge | Found Cep. Countertargeting System 11377 | -2/Protoforge | Spotted V011-l 11378 | -2/Protoforge | Spotted V203-h 11378 | -2/Protoforge | Found Cep. Melee Reflex Suite 11406 | -2/Protoforge | Found Cep. Weapon Articulator 11431 | -2/Protoforge | Spotted V140-g 11433 | -2/Protoforge | Found Femtoactuators 11445 | -2/Protoforge | Spotted Decapitator 11445 | -2/Protoforge | Spotted Decapitator 11445 | -2/Protoforge | Spotted Decapitator 11445 | -2/Protoforge | Spotted Decapitator 11449 | -2/Protoforge | Destroyed Decapitator 11449 | -2/Protoforge | Destroyed Decapitator 11453 | -2/Protoforge | Destroyed Decapitator 11453 | -2/Protoforge | Destroyed Decapitator 11474 | -2/Protoforge | Destroyed 7 combat bots 11489 | -2/Protoforge | Found Prototype Device 11489 | -2/Protoforge | Identified Exp. Active Sensor Suite 11566 | -2/Protoforge | Found Cep. Zero-point Core 11568 | -2/Protoforge | Spotted Immortal 11568 | -2/Protoforge | Spotted Immortal 11568 | -2/Protoforge | Found Cep. Zero-point Core 11577 | -2/Protoforge | Found Cep. Zero-point Core 11635 | -2/Protoforge | Build established: Hacker-Gladiator 11706 | -2/Protoforge | Found Faulty Cep. Fieldthrust Drive 11722 | -2/Protoforge | Warped through subspace to slip node 11723 | -2/Protoforge | Entered Access 11723 | -1/Access | Evolved 2 slots: Propulsion x2 11738 | -1/Access | Found Quantum Capacitor 11752 | -1/Access | Found Prototype Device 11752 | -1/Access | Identified Exp. EM Shield 12002 | -1/Access | Discovered new exit (range 6) 12002 | -1/Access | Identified exit to Surface 12002 | *** | Escaped! Last Messages --------------- 11991_ P-80 Master destroyed. 11992_ K-01 Serf collects debris. 11992_ Martial strike on P-80 Master. 11992_ Destroyed Gamma Rifle. 11993_ Destroyed Mic. Antimatter Reactor. 11994_ Destroyed Adv. Remote Datajack. 11995_ K-01 Serf cleans the Spectral Interrupter. 11996_ Destroyed Imp. Antigrav System. 11996_ Destroyed Sml. Battery. 11997_ P-80 Master destroyed. 11999_ Acquired 6 matter. 11999_ K-01 Serf collects debris. 12001_ Connecting with Terminal... >>Open(Door) Sealed Barrier opened. 12002_ The Access Shell folds into the floor. 12002_ EXIT=FOUND 12002_ EXIT=IDENTIFIED: SURFACE [Achievement: True Flier] Map ----- +----------------------------------------------------+ | ?????????????????????????????????????????????????? | | ???????????????????????????????????????########### | | ??????????????????????????????????????############ | | ??????????????????????????????????????## """T""" | | ??????????????????????????????????????## """ """ | | ??????????????????????????????????????## | | ??????????????????????????????????????## | | ????????????k?????????????????????????## " | | ??????????????????????????????????????## """" | | ??????????????????????????????????????##""""" | | ??????????????????????????????????????## """"" | | ??????????????????????????????????????## """" | | ??????????????????????????????????????## " | | ??????????????????????????????????????## ! | | ??????????? ?????????????????????????## % | | ????????? ?????????????????????????########+### | | ?????????## ?????????????????????????###### | | ?????????## ?????#####???????????????????## | | ?????????## ###################??????????## ^ | | ?????????## ####### ###########??????????## """ | | ?????????## """T""" ""??????????## """ | | ?????????## """ """ "????BB??? ### """ | | ?????????## "????BB?? ### """ | | ?????????## "?????? """ | | ?????????## "" "?????? | | ?????????## @" "?????? | | ?????????## "?????? | | ?????????## "????BB? ####+#### | | ?????????## "????BB? # | | ?????????## ""??????? # | | ?????????## ####### ###########????????## [ | | #### ###### ###################?######### | | ####+###### ##???#####??????????######### | | # # ##??????????????????## " " | | # # ##??????????????????## # "" | | # + ###################### " # ! " | | # # ###################### " # " | | + " ? + =![ !#! " # | | # "??? # R=! k !!=%= Y # | | # ????? # ###+#########"#####[%#!["" # | | # ??????? # # !%!! ######!!# "" ######### | | ?????????## # !%k ###?## # "" ### | | ?????????## # ##??## # ##??????? | | ?????????## # " ##??## # + ??????? | | ?????????## # """" [ ##??## #########??????? | | ?????????## # """"" ##??## #########??????? | | ?????????## # """"" ##??# #?????????????? | | ?????????## # """" ##??? " ??????????????? | | ?????????## # " ##?## ??????????????? | | ?????????## # ? ##?## ##????????????? | +----------------------------------------------------+ Best States ------------- Heat Dissipation 172 Energy Generation 89 Energy Capacity 840 Matter Stores 300 Matter Capacity 300 Sight Range 22 Robot Scan Range 20 Terrain Scan Range 16 Terrain Scan Density 10 ECM Strength 2 Jamming Range 22 Base Temperature (-) 200 Armor Coverage 300 Melee Speed Boost 50 Phase Shifting 25 Evasion (%) 93 Targeting Accuracy 38 Melee Accuracy 8 Core Analysis 8 Offensive Hacking 49 Defensive Hacking 45 Authchip Count 1 Trap Extractor Capacity 8 Item Schematics ----------------- VTOL Module | -8/Materials | Hacked Structural Scanner | -8/Materials | Hacked Imp. VTOL Module | -7/Factory | Hacked Combat Drone Bay | -7/Data Miner | Free Lgt. Regenerative Plating | -7/Data Miner | Free Multireflex Exoskeleton | -7/Data Miner | Free Exp. Power Shielding | -7/Data Miner | Free Imp. Lightning Gun | -7/Data Miner | Free Med. Armored Exoskeleton | -7/Data Miner | Free Adv. Recoil Stabilizer | -7/Data Miner | Free Mass Driver | -7/Data Miner | Free Fusion Compressor | -7/Data Miner | Free Thunder Leg | -7/Data Miner | Free Adv. Actuator Array | -7/Data Miner | Free Adv. Trap Scanner | -7/Data Miner | Free Hacking Suite | -6/Factory | Scanalyzed Cld. Cesium-ion Thruster | -5/Factory | Hacked Assault Drone Bay | -5/Zhirov | Free Exp. Heat Sink | -5/Zhirov | Free Exp. Optical Array | -5/Zhirov | Free Imp. Arc Thrower | -5/Zhirov | Free Exp. Gyrokinetic Inverter | -2/Protoforge | Archive Lgt. Antimatter Cannon | -2/Protoforge | Archive Robot Schematics ------------------ R-10 Processor | -7/Data Miner | Free S-27 Virus | -7/Data Miner | Free C-17 Slicer | -7/Data Miner | Free L-41 Fighter | -7/Data Miner | Free M-22 Extractor | -7/Data Miner | Free A-15 Conveyor | -7/Data Miner | Free Fabricated ------------ Imp. VTOL Module | x1 | -7/Factory Imp. VTOL Module | x1 | -7/Factory Lgt. Regenerative Plating | x1 | -6/Factory Imp. VTOL Module | x1 | -5/Factory Repaired ---------- Imp. VTOL Module | 26% | -4/Factory Xenon Bombardment Thruster | 3% | -2/Research | Broken Alien Tech Used ----------------- Core Expander Integrated Dissipator Sigix Broadsword Dimensional Node Initializer Transdimensional Reconstructor Achievements -------------- Godhack True Flier Woof! Challenges ------------ None Game ------ Seed ChromionCoolingReactor Manual? 0 Play Time 05:17:03 Cumulative 290.1 hours Start 2025.06.05 @ 17:15:40 End 2025.06.06 @ 00:01:02 Sessions 2 Manual Loads 0 Difficulty Rogue Special Mode None Game No. 152 Rogue 144 Adventurer 8 Explorer 0 Win Type 0 Total 14 Types 8/0/2/2/0/0/1/0/0/1 Lore% 88 Gallery% 86 Achievement% 78 Wizard Run 0 Options --------- Layout 2 ASCII 0 Keyboard 1 Movement Numpad Keybinds 1 Fullscreen 1 Font 48/Smallcaps Map View 50x44 Zoom Use 0% Tactical HUD 1 Map Filters NONE Filters NONE Steam 1 RUN: 32817fc9-8814-4d13-bcd2-ad92cf89f1a2